Workbook

Sheet Cover Page
D1: Add company logo
N2: Version 22.3 30/11/22
B8: Add photo
N13: Notes:
N14: This template may require adjustments by individual operators to meet specific reporting requirements as defined in the site Permit(s)
B29: Annual Performance Report 2022
B31: Permit EPR/WP3438HZ
B33: Suffolk Energy from Waste Facility
B37: SUEZ Recycling and Recovery Suffolk Ltd
B39: Year: | C39: 2022
B41: Address: | C41: Lodge Lane, Great Blakenham, Suffolk, IP6 0JE
B43: Tel: | C43: 01473 839149
B45: Email: | C45: james.clarke@suez.com
B47: Prepared by: | C47: Richard Watkins | F47: Position: | G47: EIR Manager
C48: Robert Taylor | G48: Technical Plant Engineer
B50: Approved by: | C50: James Clarke | F50: Position: | G50: EfW Plant Manager
B52: Version: | C52: 3
B54: Issue Date: | C54: 2023-03-28

Sheet Contents
A1: =+'Cover Page'!$B$29 -> Annual Performance Report 2022 | E1: =+'Cover Page'!$B$33 -> Suffolk Energy from Waste Facility
A3: Contents | K3: Notes:
A4: Section | B4: Subject | H4: Page | K4: Section references and Page nos. to be inserted
B5: Facility Information | K5: Sections and Subjects may require adjustment by individual operators to meet specific reporting requirements as defined in the sites Permit(s)
B6: Operational Data
B7: Operational Summary
B8: Performance Form 1
B9: Energy Form 1
B10: Permit Compliance
B11: Improvements
B12: Public Liaison
B13: Carbon dioxide and nitrous oxide emissions
B14: Residue Quality
B15: Emissions to Water
B16: Emissions to Air (periodically monitored)
B17: Emissions to Air (continuously monitored)
B18: Hydrogen Chloride emissions
B19: Sulphur Dioxide emissions
B20: Oxides of Nitrogen emissions
B21: Total Organic Carbon emissions
B22: Particulate Matter emissions
B23: Carbon Monoxide emissions
A27: Version Control
A28: Section | B28: Information | H28: Date
A29: 1 | B29: Original issue
A30: 2 | B30: Line availability data amended in Operational Data | H30: 2023-02-24
A31: 3 | B31: Q2 APCR tonnage amended | H31: 2023-03-28
A35: Distribution
A36: Copy | B36: Name, Role | H36: No.
A45: This report is required under the Industrial Emissions Directive’s Article 55(2) requirements on reporting and public information on waste incineration plants and co-incineration plants, which require the operator to produce an annual report on the functioning and monitoring of the plant and make it available to the public.

Sheet Facility Info
A1: =+'Cover Page'!$B$29 -> Annual Performance Report 2022 | E1: =+'Cover Page'!$B$33 -> Suffolk Energy from Waste Facility
A3: Plant Description and Design | K3: Notes:
A5: This non-hazardous waste incinerator operates 24/7 across two furnace lines and can receive up to 295,000 tonnes of municipal waste and commercial/Industrial waste per annum. The heat produced by waste incineration is used to raise superheated steam which generates approximately 179,000 MWh/annum of electricity. Activities associated with the incineration are receipt and storage of municipal waste and commercial/industrial waste, production of steam and electricity, abatement of flue gas and handling of Incinerator Bottom Ash (IBA) and Air Pollution Control Residue (APCR). Suffolk EfW commissioning finished on 1st December 2014, when the plant was handed over from the EPC contractor to SUEZ UK. Permit conditions have applied since this date. The data included in this report corresponds to the following period: 1st January 2021 to 31st December 2021. | K5: Include summary of plant design, design capacity, no. of combustion lines, electrical and heat capacity and any other general information that describes the facility, its location and purpose
A20: Summary of Operational Processes and Procedures
A22: RECEPTION HALL & BUNKER Incoming waste is delivered to site by refuse collection trucks. It is then checked in, weighed and delivered into the reception hall. A large reception hall allows for refuse collection trucks to manoeuvre and tip waste safely. Air needed for combustion is drawn into the furnace from here so that negative pressure is maintained in order to avoid odour and dust escaping the building. Waste vehicles reverse to a wheel stop and tip their loads into a large concrete bunker. Mixing of waste occurs as the cranes driver sorts the waste looking for unsuitable material to be removed, and to improve the homogeneity of the incinerator feedstock. CONTROL ROOM The plant’s control room centralises the operation of all equipment, including the grab cranes used to mix and load waste into a hopper that feeds the furnace. All on-site functions are monitored automatically and manually. Its systems verify in real time that equipment is functioning properly, continuously monitor the combustion gas, and maximise the efficiency of the entire EfW process. GRATE AND BOILER Waste is lifted into the charging hoppers by the crane. From here it falls into the furnace-charging chute and then is introduced onto the grate system by hydraulic feeders for incineration. An auxiliary burner can be used to help keeping the temperature above 850°C if required. The thermal energy released from the burning is used to convert water to super-heated steam along a boiler composed of 6 vertical passes. At high pressure, this steam drives a turbine to generate electricity. ELECTRICITY GENERATION Electricity is generated at 11kv, with an electric production of 203,863 MWh/annum and exporting 180,346 MWh/annum to the national grid. INCINERATOR BOTTOM ASH (IBA) Ash left on the grate after incineration is carried by conveyor, after quenching, to the IBA processing facility. Up to 65,000 tonne of IBA is processed on site by the removal of ferrous and non-ferrous metal, stabilised and separated into fraction sizes of IBA prior to the export from site of the processed IBA and metals for re-use. EMISSION CONTROL & AIR POLLUTION CONTROL RESIDUE (APCR) The gases from the furnace are subject to a rigorous cleaning process involving urea as selective non-catalytic reduction (SNCR), lime and active carbon injections. This removes oxides of nitrogen, acidic gases, dioxins, and heavy metals from the gas stream. The cleaned gas passes through fine-fabric bag filters to remove solid particles before it is emitted through the stack. The resultant APCR residue, or fly-ash, contains particles from the incineration process, lime used in the flue gas treatment, salts and carbon dust. It is stored in a sealed silo until it is tankered away for recycling. EMISSIONS MONITORING As they pass through the stack, the residual flue gases from the process are continuously monitored before release. This data is relayed automatically to the control room. | K22: Include summary of key processes and procedures such as (but not limited to); waste reception, control rooms, grate, bed and boiler, energy & heat generation, cooling systems, residue management, emission controls, health and safety systems, maintenance

Sheet Operational Data
A1: =+'Cover Page'!$B$29 -> Annual Performance Report 2022 | E1: =+'Cover Page'!$B$33 -> Suffolk Energy from Waste Facility
A3: Operational Data | K3: Notes:
A4: Plant Size | B4: 295000 | D4: tonnes pa | E4: 89 | F4: MWth | G4: 26 | H4: MWe | K4: * - RDF to include SRF
A5: No. of combustion lines | B5: 2 | D5: No. of Turbines: | F5: 1 | K5: ** - CHP plants only
K6: 2020 updates include; heat in MWh, water in Litres, NCV in MJ/kg
A7: Waste types received | B7: Unit | C7: Q1 | D7: Q2 | E7: Q3 | F7: Q4 | G7: Year Total | H7: %
A8: Household / Local Authority | B8: tonnes | C8: 58723 | D8: 47415 | E8: 56885 | F8: 56638 | G8: =SUM(C8:F8) -> 219661 | H8: =IF(G8>0,G8/$G$18,"-") -> 0.7760858121 | K8: Availability Definition: 'the availability of a line is to be calculated by the number of hours the line reported Continuously Monitored emission levels to the Regulator through the calendar year divided by the total number of hours in that year. The overall plant availability is calculated as the Mean of all lines in the plant. For clarity this includes periods of Other Than Normal Operating Conditions (OTNOC) and abnormal operation.' Rationale: The primary function of an Energy from Waste facility is the disposal of waste. It follows therefore that the availability of a plant is determined by the period of time a facility spends undertaking this activity.
A9: Commercial & Industrial | C9: 14377 | D9: 8231 | E9: 15948 | F9: 20012 | G9: =SUM(C9:F9) -> 58568 | H9: 0.2069270095
A10: Hazardous | C10: - | D10: - | E10: - | F10: - | G10: 0 | H10: -
A11: Clinical | C11: 960 | D11: 518 | E11: 1418 | F11: 1912 | G11: 4808 | H11: 0.01698717835
A12: Waste wood (biomass) | G12: 0 | H12: -
A13: Refuse Derived Fuel * - H'hold/LA | G13: =SUM(C13:F13) -> 0 | H13: -
A14: Refuse Derived Fuel * - C&I | G14: 0 | H14: -
A15: Other [Please specify] | G15: 0 | H15: -
A16: Other [Please specify]
A17: Other [Please specify]
A18: Total waste received | C18: =SUM(C8:C17) -> 74060 | D18: =SUM(D8:D17) -> 56164 | E18: =SUM(E8:E17) -> 74251 | F18: =SUM(F8:F17) -> 78562 | G18: =SUM(G8:G17) -> 283037 | H18: 1
A19: Rejected Waste | G19: =SUM(C19:F19) -> 0 | H19: =IF(G19>0,G19/$G$18,"-") -> -
A20: Unprocessed waste transferred out | G20: =SUM(C20:F20) -> 0 | H20: =IF(G20>0,G20/$G$18,"-") -> -
A21: Total waste combusted | C21: =C18-SUM(C19:C20) -> 74060 | D21: =D18-SUM(D19:D20) -> 56164 | E21: 74251 | F21: 78562 | G21: =SUM(C21:F21) -> 283037 | H21: =IF(G21>0,G21/$G$18,"-") -> 1
A23: Energy Usage / Export | B23: Unit | C23: Q1 | D23: Q2 | E23: Q3 | F23: Q4 | G23: Year Total | H23: KWh/te
A24: Power Generated | B24: MWh | C24: 55024.4304 | D24: 35216.05822 | E24: 55184.13456 | F24: 54009.47544 | G24: =SUM(C24:F24) -> 199434.0986 | H24: =IF(G24>0,G24*1000/$G$21,"-") -> 704.6220057
A25: Power Exported | C25: 48959.739 | D25: 30956.052 | E25: 49190.414 | F25: 47983.369 | G25: =SUM(C25:F25) -> 177089.574 | H25: =IF(G25>0,G25*1000/$G$21,"-") -> 625.6764098
A26: Power Used on site | C26: 6064.6914 | D26: 4260.006224 | E26: 5993.72056 | F26: 6026.10644 | G26: =SUM(C26:F26) -> 22344.52462 | H26: =IF(G26>0,G26*1000/$G$21,"-") -> 78.94559589
A27: Power Imported | C27: 2.997 | D27: 607.527 | E27: 3.827 | F27: 2.179 | G27: 616.53 | H27: =IF(G27>0,G27*1000/$G$21,"-") -> 2.178266446
A28: Parasitic Load | B28: % | C28: =IF(C24>0,1-C25/(C24+C27),"-") -> 0.1102666195 | D28: =IF(D24>0,1-D25/(D24+D27),"-") -> 0.1358751 | E28: =IF(E24>0,1-E25/(E24+E27),"-") -> 0.1086749246 | F28: =IF(F24>0,1-F25/(F24+F27),"-") -> 0.1116108274 | G28: =IF(G24>0,1-G25/(G24+G27),"-") -> 0.1147762183
A29: Thermal Energy Produced ** | B29: MWh | G29: =SUM(C29:F29) -> 0
A30: Thermal Energy Exported ** | G30: 0 | H30: =IF(G30>0,G30*1000/$G$21,"-") -> -
A31: R1 value (if applicable) | H31: 0.83
A33: Waste Disposal & Recovery | B33: Unit | C33: Q1 | D33: Q2 | E33: Q3 | F33: Q4 | G33: Year Total | H33: % inputs
A34: APC Residues - produced | B34: tonnes | C34: 1818.6 | D34: 1472.8 | E34: 1731.54 | F34: 2023.54 | G34: =SUM(C34:F34) -> 7046.48 | H34: =IF(G34>0,G34/$G$21,"-") -> 0.02489596767
A35: IBA - produced | C35: 13341.78 | D35: 10119.62 | E35: 11413.98 | F35: 13179.72 | G35: 48055.1 | H35: =IF(G35>0,G35/$G$21,"-") -> 0.1697838092
A36: Metals recycling | C36: 2344.54 | D36: 2181.78 | E36: 2462.62 | F36: 2474.46 | G36: =SUM(C36:F36) -> 9463.4 | H36: 0.03343520458
A37: Other | C37: 0 | D37: 0 | E37: 0 | F37: 0 | G37: =SUM(C37:F37) -> 0 | H37: -
A38: Other | C38: 0 | D38: 0 | E38: 0 | F38: 0 | G38: 0 | H38: -
A39: Other | C39: 0 | D39: 0 | E39: 0 | F39: 0 | G39: 0 | H39: -
A41: Raw Material Usage | B41: Unit | C41: Q1 | D41: Q2 | E41: Q3 | F41: Q4 | G41: Year Total | H41: kg or Ltr /te
A42: Mains Water | B42: ltrs | C42: 9066000 | D42: 7854000 | E42: 8653000 | F42: 9482000 | G42: =SUM(C42:F42) -> 35055000 | H42: =IF(G42>0,G42/$G$21,"-") -> 123.8530651
A43: Other Water | B43: ltrs | G43: 0 | H43: =IF(G43>0,G43/$G$21,"-") -> -
A44: Ammonia | B44: kgs | G44: 0 | H44: -
A45: Urea | B45: kgs | C45: 200879.3076 | D45: 164240.7296 | E45: 190914.2699 | F45: 197917.5123 | G45: =SUM(C45:F45) -> 753951.8193 | H45: 2.663792435
A46: Activated Carbon | B46: kgs | C46: 22740.46397 | D46: 20561 | E46: 23058 | F46: 17734 | G46: 84093.46397 | H46: 0.2971112044
A47: Lime / hydrated lime | B47: kgs | C47: 735434.0101 | D47: 505097 | E47: 520285 | F47: 378142 | G47: 2138958.01 | H47: 7.557167473
A48: Fuel oil | B48: ltrs | C48: 17874.77013 | D48: 123416.7273 | E48: 36172.29181 | F48: 29246.01848 | G48: 206709.8077 | H48: 0.7303278644
A49: Gas | B49: cf | C49: 0 | D49: 0 | E49: 0 | F49: 0 | G49: 0
A50: Other | C50: 0 | D50: 0 | E50: 0 | F50: 0 | G50: 0
A52: Summary | B52: Line/Unit | C52: Q1 | D52: Q2 | E52: Q3 | F52: Q4 | G52: Year Total | J52: Hrs in year
A53: Availability of waste combustion by line, hrs | B53: 1 | C53: 2159 | D53: 1577.5 | E53: 2155 | F53: 2153.7 | G53: =SUM(C53:F53) -> 8045.2 | H53: =G53/$J$53 -> 0.9184018265 | J53: 8760
B54: 2 | C54: 2108.5 | D54: 1677.2 | E54: 2204.7 | F54: 2143.7 | G54: 8134.1 | H54: =G54/$J$53 -> 0.9285502283
B55: 3
B56: 4
B57: 5
A58: Overall Availability, mean avg. of all lines, hrs | G58: =AVERAGE(G53:G57) -> 8089.65 | H58: =G58/$J$53 -> 0.9234760274
A59: Hours of turbine operations, hrs | B59: 1 | C59: 2158.95 | D59: 1675.95 | E59: 2206.392 | F59: 2207.158 | G59: 8248.45 | H59: =G59/$J$53 -> 0.9416038813
A60: Hours of turbine operations, hrs | B60: 2 | G60: 0
A61: Hours of heat / steam export | G61: 0 | H61: =IF(B61>0,G60/J53,"n/a") -> n/a
A62: Net Calorific Value of waste | B62: MJ/kg | C62: 9137.248271 | D62: 8779.984572 | E62: 9185.775905 | F62: 8870.902327 | H62: -
A63: Abnormal Events | B63: qty. | C63: 0 | D63: 0 | E63: 0 | F63: 0 | G63: 0 | H63: =IF(G63>0,"yes","no") -> no
A64: Abnormal operation | B64: hours | C64: 0 | D64: 0 | E64: 0 | F64: 0 | G64: 0 | H64: =+(G64)/J53 -> 0
A65: Permit Breaches | B65: qty. | C65: 2 | D65: 1 | E65: 1 | F65: 0 | G65: 4 | H65: =IF(G65>0,"yes","no") -> yes

Sheet Operational Summary
A1: =+'Cover Page'!$B$29 -> Annual Performance Report 2022 | E1: =+'Cover Page'!$B$33 -> Suffolk Energy from Waste Facility
A3: Summary of Plant Operations and Maintenance during the reporting year | K3: Notes:
A5: Suffolk EfW has continued to have a successful operating period in 2022 continuing to demonstrate high levels of availability. 2022 was a change in operating philosophy where the lines were subject to only a single planned outage in the calendar year. The outage was an unusually lengthy one to facilitate replacement of two banks of superheaters on each line, with the superheaters being upgraded with an Inconel overlay over the entire surface of one bank and over the first two rows of tubes of the other bank. The Inconel overlay will be more resistant to corrosion and reduce the frequency of future heating surface replacements. The outage also saw significant repairs / replacement of the bag filter casing which had been subject to corrosion and ongoing replacement of refractory tiles in pass 1. Further works in the outage included the completion of a minor service on the turbine leading to the turbine being out of service for approximately 16 days. The plant has spent a proportion of the year without a complete feed train as the condensate reheater was identified as leaking during routine maintenance inspections during the outage and it is hoped that this will be returned to service in the early part of 2023. | K5: Include summary of key operational and/or maintenance activity undertaken in the year, such as any major component upgrades and/or replacements
A29: Summary of Residue Handling for the reporting year
A31: All IBA produced by the EfW plant is transferred to the IBA recycling plant by conveyor, the IBA recycling plant is operated by Blue Phoenix. The IBA is non-hazardous, as confirmed by weekly analysis of the IBA, and undergoes a mechanical separation process to remove all ferrous and non-ferrous metals leaving an IBA aggregate product. The metals are transferred to other operators for recycling and the IBA is applied to land in construction activities as a replacement for virgin (quarried) aggregate. This is in accordance with Environment Agency Regulatory Position Statement (RPS) 206 "Using unbound IBAA in construction activities". Air Pollution Control (APC) residues is the fly ash from the boiler mixed with dry sorbents such as carbon and lime in the flu gas treatment plant. The APC residue is hazardous and is therefore collected and disposed of to landfill Some additional residues may be produced during cleaning of the boiler during cleaning activities in planned maintenance outages. This boiler ash, often mixed with grit blast residues from the cleaning process, is disposed of to landfill. | K31: Include in here a summary of residue handling regimes and destinations

Sheet Perf. Form 1
A1: =+'Cover Page'!C39 -> 2022 | B1: Annual Reporting Performance Form 1
A3: =+'Cover Page'!B31 -> Permit EPR/WP3438HZ | F3: Operator: | G3: =+'Cover Page'!B37:B37 -> SUEZ Recycling and Recovery Suffolk Ltd
A4: Facility: | B4: =+'Cover Page'!B33:I33 -> Suffolk Energy from Waste Facility | F4: Form: | G4: Performance 1
A6: Reporting Period from: | D6: 2022-01-01 | F6: to: | G6: 2022-12-31
A8: =+A1 -> 2022 | B8: Annual Reporting of Waste Disposal and Recovery
A9: Waste Description | C9: Disposal Route(s) | E9: Disposal Tonnes | G9: Recovery Tonnes | I9: % / tonne of waste incinerated
A10: 1) Hazardous Wastes
A11: APC Residues | C11: D05 | E11: 7046.46 | I11: =IF((E11+G11)>0,(E11+G11)/'Operational Data'!$G$21, "-") -> 0.024895897
A12: IBA | I12: =IF((E12+G12)>0,(E12+G12)/'Operational Data'!$G$21, "-") -> -
I13: =IF((E13+G13)>0,(E13+G13)/'Operational Data'!$G$21, "-") -> -
I14: =IF((E14+G14)>0,(E14+G14)/'Operational Data'!$G$21, "-") -> -
A15: Total Hazardous Waste | E15: =SUM(E11:F14) -> 7046.46 | G15: =SUM(G11:H14) -> 0 | I15: =IF((E15+G15)>0,(E15+G15)/'Operational Data'!$G$21, "-") -> 0.024895897
A17: 2) Non-Hazardous Wastes
A18: IBA | C18: R05 | G18: 48055.1 | I18: =IF((E18+G18)>0,(E18+G18)/'Operational Data'!$G$21, "-") -> 0.1697838092
A19: Ferrous Metal | C19: R04 | G19: 6400.56 | I19: =IF((E19+G19)>0,(E19+G19)/'Operational Data'!$G$21, "-") -> 0.02261386321
A20: Process Water | I20: =IF((E20+G20)>0,(E20+G20)/'Operational Data'!$G$21, "-") -> -
A21: Non-ferrous metal | C21: R04 | G21: 3127.14 | I21: =IF((E21+G21)>0,(E21+G21)/'Operational Data'!$G$21, "-") -> 0.01104852016
I22: =IF((E22+G22)>0,(E22+G22)/'Operational Data'!$G$21, "-") -> -
A23: Total Non-Hazardous Waste | E23: =SUM(E18:F22) -> 0 | G23: =SUM(G18:H22) -> 57582.8 | I23: =IF((E23+G23)>0,(E23+G23)/'Operational Data'!$G$21, "-") -> 0.2034461925
A24: TOTAL WASTE | E24: =+E23+E15 -> 7046.46 | G24: =+G23+G15 -> 57582.8 | I24: =IF((E24+G24)>0,(E24+G24)/'Operational Data'!$G$21, "-") -> 0.2283420896
A26: Operator’s comments :
A31: =+A1 -> 2022 | B31: Annual Reporting of Water and Other Raw Material Usage
A32: Raw Material | E32: Usage | G32: Unit | H32: Specific Usage | J32: Unit
A33: Mains Water | E33: =+'Operational Data'!G42/1000 -> 35055 | G33: m3 | H33: =IF(E33>0,E33/'Operational Data'!$G$21,"-") -> 0.1238530651 | J33: m3/te
A34: Total Water | E34: =+'Operational Data'!G43/1000+'Operational Data'!G42/1000 -> 35055 | G34: m3 | H34: =IF(E34>0,E34/'Operational Data'!$G$21,"-") -> 0.1238530651 | J34: m3/te
A35: Urea / Ammonia | E35: =+'Operational Data'!G45 -> 753951.8193 | G35: kg | H35: =IF(E35>0,E35/'Operational Data'!$G$21,"-") -> 2.663792435 | J35: kg/te
A36: Activated Carbon | E36: =+'Operational Data'!G46 -> 84093.46397 | G36: kg | H36: =IF(E36>0,E36/'Operational Data'!$G$21,"-") -> 0.2971112044 | J36: kg/te
A37: Lime / hydrated lime / Sodium Bicarb. | E37: =+'Operational Data'!G47 -> 2138958.01 | G37: kg | H37: =IF(E37>0,E37/'Operational Data'!$G$21,"-") -> 7.557167473 | J37: kg/te
A39: Operator’s comments :
A43: =+A31 -> 2022 | B43: Annual Reporting of other performance indicators
A44: Parameter | C44: Results by Line
C45: A1 | D45: A2 | E45: A3 | F45: A4 | G45: A5 | I45: Turbine 1 | J45: Turbine 2
A46: Operating hours for the year, hours | C46: ='Operational Data'!G53 -> 8045.2 | D46: ='Operational Data'!G54 -> 8134.1 | I46: ='Operational Data'!G59 -> 8248.45
A47: Number of periods of abnormal operation, qty. | C47: 0 | D47: 0
A48: Cumulative hours of abnormal operation for this year, hours | C48: 0 | D48: 0
A50: Operator’s comments :
A54: Signed: | B54: Richard Watkins | G54: Date: | H54: 2023-01-24

Sheet Energy Form 1
A1: =+'Cover Page'!C39 -> 2022 | B1: Annual Reporting of Energy Usage/Export
A3: =+'Cover Page'!B31 -> Permit EPR/WP3438HZ | F3: Operator: | G3: =+'Cover Page'!B37:B37 -> SUEZ Recycling and Recovery Suffolk Ltd
A5: Facility: | B5: =+'Cover Page'!B33:I33 -> Suffolk Energy from Waste Facility | F5: Form: | G5: Energy 1
A7: Reporting Period from: | D7: =+'Perf. Form 1'!D6:E6 -> 2022-01-01 | F7: to: | G7: =+'Perf. Form 1'!G6:H6 -> 2022-12-31
A9: Energy Source | D9: Energy Usage | F9: Unit | G9: Specific Usage (KWh/tonne incinerated
A10: Electricity Produced | D10: =+'Operational Data'!G24 -> 199434.0986 | F10: MWh | G10: =+'Operational Data'!H24 -> 704.6220057
A11: Electricity Imported | D11: =+'Operational Data'!G27 -> 616.53 | F11: MWh | G11: =+'Operational Data'!H27 -> 2.178266446
A12: Electricity Exported | D12: =+'Operational Data'!G25 -> 177089.574 | F12: MWh | G12: =+'Operational Data'!H25 -> 625.6764098
A13: Gas Oil | D13: ='Operational Data'!G48*0.85/1000 -> 175.7033366 | F13: tonnes
A14: Steam/hot water exported | D14: =+'Operational Data'!G30 -> 0 | F14: GWh | G14: =+'Operational Data'!H30 -> -
A18: Operator’s comments :
A19: Fuel oil in litres is converted to tonnes using a density value of 0.85.
A29: Signed: | B29: Richard Watkins | G29: Date:

Sheet Permit Compliance
A1: =+'Cover Page'!$B$29 -> Annual Performance Report 2022 | E1: =+'Cover Page'!$B$33 -> Suffolk Energy from Waste Facility
A3: Summary of Permit Compliance
A5: Compliance with permit limits for continuously monitored pollutants
A7: The plant met its emission limits as shown in the table below:
A8: Substance | C8: Percentage time compliant during operation | L8: Notes:
C9: Half-hourly limit | F9: Daily limit | L9: Report to 2 decimal places, i.e. xx.xx% Please provide a brief summary of each notification or non-compliance in the table (rather than just referring to notifications that were sent to the Regulator).
A10: Particulates | C10: 1 | F10: 1
A11: Oxides of nitrogen | C11: 1 | F11: 1
A12: Sulphur dioxide | C12: =1-(0.5*2)/(365*24*2) -> 0.9999429224 | F12: 1
A13: Carbon monoxide | C13: 100.00% 95% of 10-min averages | F13: 1
A14: Total organic carbon | C14: =1-(0.5*2)/(365*24*2) -> 0.9999429224 | F14: 1
A15: Hydrogen chloride | C15: 1 | F15: 1
A18: Summary of any notifications or non-compliances under the permit
A19: Date | B19: Summary of notification or non-compliance [including Line/Reference] | E19: Reason | H19: Measures taken to prevent reoccurrence
A20: 2022-01-21 | B20: SUF-001-22 SO2 half hourly avg breach on Line 2 | E20: High levels in waste | H20: Waste supplier suspended and audits of all 3rd party suppliers commenced
A21: 2022-02-03 | B21: SUF-002-22 SO2 half hourly avg breach on Line 1 | E21: High levels in waste | H21: Waste supplier suspended and audits of all 3rd party suppliers commenced
A22: 2022-06-10 | B22: SUF-003-22 TOC half hourly avg breach on Line 2 | E22: Combustion conditions due to plant trip | H22: Incident briefings and training drills
A23: 2022-07-18 | B23: SUF-004-22 TOC half hourly avg breach on Line 1 | E23: Combustion control | H23: Alarm management and reconfig.
A26: Summary of any complaints received and actions to taken to resolve them.
A27: Date | B27: Summary of complaint [including Line/Reference] | E27: Reason * | H27: Measures taken to prevent reoccurrence
A28: 2022-01-14 | B28: Odour of IBA at complainants home | E28: Not substantiated | H28: Off site odour checks implemented for 30 days
A29: 2022-01-27 | B29: Odour of IBA in field/picnic area adjacent to site | E29: Not substantiated
A30: 2022-02-03 | B30: Repeat of complaints from 27/01/22 | E30: Not substantiated | H30: Odour was detected by Comms Mgr. Dust suppression increased over raw ash conveyor to IBA plant.
A31: 2022-08-11 | B31: Info from CLG re odour complaints on Facebook | E31: Not substantiated | H31: EA informed
A32: 2022-12-19 | B32: Burning smell detected by complainant between 5pm and 6pm every night for the last 2 years | E32: Not substantiated | H32: EA informed and offsite odour checks implemented for 30 days.
E33: * including whether substantiated by the operator or the EA

Sheet Improvements
A1: =+'Cover Page'!$B$29 -> Annual Performance Report 2022 | E1: =+'Cover Page'!$B$33 -> Suffolk Energy from Waste Facility
A3: Summary of Plant Improvements
A5: Summary of any efficiency improvements that have been completed within the year.
A6: Further optimisation of the air cooled condenser cleaning regime has been undertaken in 2022 resulting in more frequent cleaning and an overall improvement in overall cycle efficiency.
A16: Summary of any permit improvement conditions that have been completed within the year and the resulting environmental benefits.
A17: Nil
A27: Summary of any changes to the plant or operating techniques which required a variation to the permit and a summary of the resulting environmental impact.
A28: Nil
A38: Summary of any other improvements made to the plant or planned to be made and a summary of the resulting environmental benefits.

Sheet Public Liasion
A1: =+'Cover Page'!$B$29 -> Annual Performance Report 2022 | E1: =+'Cover Page'!$B$33 -> Suffolk Energy from Waste Facility
A3: Details of Public & Stakeholder Liaison
A5: Summary of events held during the reporting year.
A6: Date | C6: Description
A7: 2022-05-01 | C7: Suffolk Show The Suffolk show is a 2 day event where SUEZ join the wider Suffolk Waste Partnership to speak to members of the public about how their waste is treated.
A9: Throughout the year | C9: 34 adult tours 26 school/community group tours
A11: Throughout the year | C11: 10 outreach projects Projects inlcuded visits to a Brownies group and SEND school as well as speaking at a Stroke Survivors Group.
A16: List of events planned for next year
A17: Date | C17: Description
A18: 2023-05-01 | C18: Suffolk Show
A20: Throughout the year | C20: Adult tours and school/community group tours
A22: Throughout the year | C22: Outreach projects
A29: If you wish to be involved in the public liasion programme, please contact Siobhan.o'dell@suez.com

Sheet CO2 N2O
A1: =+'Cover Page'!$B$29 -> Annual Performance Report 2022 | C1: =+'Cover Page'!$B$33 -> Suffolk Energy from Waste Facility
A3: Carbon dioxide emissions and biogenic content of waste inputs | E3: Notes:
A5: Carbon dioxide emissions (all types of plant)
A6: Annual mass of carbon dioxide released | B6: x tonnes | C6: 274203
A7: Annual mass of carbon dioxide released per tonne of waste burned | B7: x tonnes | C7: =C6/'Operational Data'!G18 -> 0.9687885329
A8: Annual mass of carbon dioxide released per MWh of energy exported | B8: x tonnes | C8: =C6/'Operational Data'!G25 -> 1.548385903
A9: Description of how annual carbon dioxide mass emission has been calculated | B9: Calibrated CEMs measurements for flow, CO2 and O2. | E9: Note 1: Where available, data from CO2 CEMS should be used. Otherwise, where no CEMS data is available, a suitable emissions factor should be used based on the tonnage of waste burned e.g.0.992 tCO2/t waste as per Tolvik report 2021, or other justified emissions factor - refer to embedded Environment Agency guidance note above or updated version for suitable descriptive text.
A11: Nitrous oxide emissions (only plants which use ammonia or urea to abate NOx emissions)
A12: Annual mass emissions of nitrous oxide | B12: x tonnes | C12: 6.126
A13: Description of how annual nitrous oxide mass emission has been calculated | B13: Periodic measurement of N2O, with CEMs flow | E13: Note 2: Where available, data from N2O CEMS should be used, or if no CEMS data is available, from periodic monitoring. Otherwise, a suitable emissions factor should be used based on the tonnage of waste burned e.g. 0.0981 kgN20/t waste as per 2021 Pollution Inventory data for plants with urea-based SNCR - refer to embedded Environment Agency guidance note above or updated version for suitable descriptive text.
A14: Total annual carbon dioxide and nitrous oxide emissions as carbon dioxide equivalent (whereby 1 t nitrous oxide is equivalent to 298 t carbon dioxide) | B14: x tonnes CO2e | C14: =C12*298+C6 -> 276028.548
A16: Biogenic fraction of the waste and biogenic CO2 emissions (only plants burning residual municipal waste, refuse derived fuel or solid recovered fuel)
A17: Yearly average biogenic percentage of the waste by net calorific value (NCV) | B17: x % | C17: 63.4
A18: Description of how biogenic NCV percentage has been calculated or estimated | B18: Periodic waste sampling (annual) is carried out in order to determine the biogenic fraction, and from this a factor is derived to determine the proportion of biogenic CO2 emitted from the plant. | E18: Note 3: Where available, data from waste sampling should be used; otherwise, an estimated figure with justification can be used, or a figure assumed on the basis of a national average e.g. 2017 WRAP data for residual waste of 51.8% biogenic energy content - refer to embedded Environment Agency guidance note above or updated version for suitable descriptive text, quoting standards where relevant.
A19: Percentage of total carbon dioxide emissions arising from biogenic waste | B19: x % | C19: 63.4
A20: Description of how percentage biogenic carbon dioxide emissions have been calculated | B20: Periodic waste sampling (annual) is carried out in order to determine the biogenic fraction, and from this a factor is derived to determine the proportion of biogenic CO2 emitted from the plant. | E20: Note 4: Examples include direct measurement via C14 method or BIOMA software - refer to embedded Environment Agency guidance note above or updated version for suitable descriptive text, quoting standards where relevant. Otherwise, as an approximation (and in lieu of any more accurate metrics which may be developed in future), the measured or estimated biogenic fraction by net calorific value can be assumed to be the same as the biogenic CO2 fraction of the total CO2 emissions from the plant.
A22: Comments:

Sheet Residue Quality
A1: =+'Cover Page'!$B$29 -> Annual Performance Report 2022 | E1: =+'Cover Page'!$B$33 -> Suffolk Energy from Waste Facility
A3: Residue Quality Monitoring Requirements
A5: Summary of monitoring undertaken and compliance
A6: The samples for the quarterly IBA analysis were taken on the 26/01/2022, the 12/04/2022, the 11/07/2022 and the 24/10/2022.
A13: Commentary on any specific events
A14: Date & Event | C14: Description
A27: Residue Quality Monitoring Results
A28: Parameter (unit) | C28: Limit | D28: Normal Operation
D29: Bottom ash | F29: APC Residues
A30: Loss on Ignition (average %) | C30: <5% | D30: N/A
A31: Total Organic Carbon (average %) | C31: <3% | D31: 1.73
A32: No. of Assessments Undertaken | C32: --- | D32: 4 | F32: 4
A33: No. of Hazardous Results | C33: --- | D33: 0
A35: Comments :
A36: Jan 2022 TOC = 2.50 % Apr 2022 TOC = 1.60 % Jul 2022 TOC = 1.81 % Oct 2022 TOC = 1.02 %

Sheet Water
A1: =+'Cover Page'!$B$29 -> Annual Performance Report 2022 | E1: =+'Cover Page'!$B$33 -> Suffolk Energy from Waste Facility
A3: Emissions to Water
A5: Summary of monitoring undertaken and compliance
A6: There are no discharges to water regulated by the permit. The discharge point S1 has a volume limit of 24m3 per day as detailed in table S3.4. Compliance with the discharge volume limit is reported to the Environment Agency on a quarterly basis in line with permit requirements.
A13: Commentary on any specific events
A14: Date & Event | C14: Description
A22: Emissions to Water / Sewer
A23: Parameter | D23: Monitoring Frequency | F23: Limit | G23: Target | H23: Max. | I23: Average

Sheet Air (periodic)
A1: =+'Cover Page'!$B$29 -> Annual Performance Report 2022 | E1: =+'Cover Page'!$B$33 -> Suffolk Energy from Waste Facility
A3: Emissions to Air (periodically monitored)
A5: Summary of monitoring undertaken, standards used and compliance | M5: Notes:
A6: The compliance monitoring visits were carried out during April and September/October 2022. There were no non-compliances identified during either visit. | M6: Template may require adjustment for any bespoke monitoring requirements of permit.
A9: Results of emissions to air that are periodically monitored
A10: Substance | C10: Ref. Period | D10: Emission Limit Value | F10: Average | M10: User to add additional tables as necessary, depending on whether quarterly or bi-annual reporting is required for the compliance year
F11: A1 | G11: A2 | H11: A3 | I11: A4 | J11: A5
A12: Hydrogen fluoride | C12: 1 hr | D12: 2 mg/m3 | F12: 0.031 | G12: 0.031
A13: Ammonia | C13: 1 hr | D13: None set mg/m3 | F13: 3.65 | G13: 1.19
A14: Cd and Th and their compounds | C14: 6-8hrs | D14: 0.05 mg/m3 | F14: 0.001515 | G14: 0.001475
A15: Hg and its compounds | C15: 6-8hrs | D15: 0.05 mg/m3 | F15: 0.000725 | G15: 0.00052
A16: Sb, As, Pb, Cr, Co, Cu, Mn, Ni, V and their compounds | C16: 6-8hrs | D16: 0.5 mg/m3 | F16: 0.0146 | G16: 0.0165
A17: Dioxins & Furans (I-TEQ) | C17: 6-8hrs | D17: 0.1 ng/m3 | F17: 0.00325 | G17: 0.00195
A18: PCBs (WHO-TEQ Humans / Mammals) | C18: 6-8hrs | D18: None set ng/m3 | F18: 0.00019 | G18: 0.000135
A19: PCBs (WHO-TEQ Fish) | C19: 6-8hrs | D19: None set ng/m3 | F19: 1.055e-05 | G19: 7.5e-06
A20: PCBs (WHO-TEQ Birds) | C20: 6-8hrs | D20: None set ng/m3 | F20: 0.00059 | G20: 0.000515
A21: Dioxins & Furans (WHO-TEQ Humans / Mammals) | C21: 6-8hrs | D21: None set ng/m3 | F21: 0.00365 | G21: 0.00205
A22: Dioxins & Furans (WHO-TEQ Fish) | C22: 6-8hrs | D22: None set ng/m3 | F22: 0.004 | G22: 0.00225
A23: Dioxins & Furans (WHO-TEQ Birds) | C23: 6-8hrs | D23: None set ng/m3 | F23: 0.0053 | G23: 0.00325
A24: Anthanthrene | C24: 6-8hrs | D24: None set µg/m3 | F24: 0.001 | G24: 0.00091
A25: Benzo(a)anthracene | C25: 6-8hrs | D25: None set µg/m3 | F25: 0.001 | G25: 0.00091
A26: Benzo(a)pyrene | C26: 6-8hrs | D26: None set µg/m3 | F26: 0.001 | G26: 0.00091
A27: Benzo(b)fluoranthene | C27: 6-8hrs | D27: None set µg/m3 | F27: 0.001 | G27: 0.00091
A28: Benzo(b)naptho(2,1-d) thiophene | C28: 6-8hrs | D28: None set µg/m3 | F28: 0.001 | G28: 0.00091
A29: Benzo(c)phenanthrene | C29: 6-8hrs | D29: None set µg/m3 | F29: 0.001 | G29: 0.00091
A30: Benzo(ghi)perylene | C30: 6-8hrs | D30: None set µg/m3 | F30: 0.001 | G30: 0.00091
A31: Benzo(k)fluoranthene | C31: 6-8hrs | D31: None set µg/m3 | F31: 0.001 | G31: 0.00091
A32: Cholanthrene | C32: 6-8hrs | D32: None set µg/m3 | F32: 0.001 | G32: 0.00091
A33: Chrysene | C33: 6-8hrs | D33: None set µg/m3 | F33: 0.001 | G33: 0.00091
A34: Cyclopenta(cd)pyrene | C34: 6-8hrs | D34: None set µg/m3 | F34: 0.001 | G34: 0.00091
A35: Dibenzo(ai)pyrene | C35: 6-8hrs | D35: None set µg/m3 | F35: 0.001 | G35: 0.00091
A36: Dibenzo(ah)anthracene | C36: 6-8hrs | D36: None set µg/m3 | F36: 0.001 | G36: 0.00091
A37: Fluoranthene | C37: 6-8hrs | D37: None set µg/m3 | F37: 0.01225 | G37: 0.021
A38: Indeno(123-cd) pyrene | C38: 6-8hrs | D38: None set µg/m3 | F38: 0.001 | G38: 0.00091
A39: Naphthalene | C39: 6-8hrs | D39: None set µg/m3 | F39: 0.0905 | G39: 0.0905
A40: Comments :
A41: The average result is calculated from the reported values for the H1 and H2 compliance monitoring campaigns. Where results are reported at the laboratory limit of detection the < qualifier is removed for calculation of the average emission as a conservative measure. Where the average has been calculated in this way the reported value is highlighted bold.

Sheet Air (CEMS)
A1: =+'Cover Page'!$B$29 -> Annual Performance Report 2022 | I1: =+'Cover Page'!$B$33 -> Suffolk Energy from Waste Facility
A3: Emissions to Air (continuously monitored)
P4: Notes:
A5: Summary of monitoring undertaken, standards used and compliance | P5: Template may require adjustment for any bespoke monitoring requirements of permit
A6: The CEMS set up comprises a multigas analyser, FID analyser and oxygen probe for extractive sampling where flue gases are drawn continuously via a heated line to the analysers in the CEMS room for each incineration line. In situ sampling i.e. where the probes are installed directly into the flue gas flow in the stack is for the dust probes only. The set up for the duty analysers is mirrored by the standby analysers. The standby analysers can be switched between incineration Lines 1 and 2 as required. Continuous monitoring is provided by the CEMS as required by the permit. The CEMS are installed in accordance with EN14181 and relevant Environment Agency guidance. | P6: Report to 2 decimal places, i.e. xx.xx%
A11: Results of emissions to air that are continuously monitored (maximum and average values for each line)
A12: Substance | B12: Reference Period | C12: Emission Limit Value | D12: A1 | F12: A2 | H12: A3 | J12: A4 | L12: A5
D13: Max. | E13: Avg. | F13: Max. | G13: Avg. | H13: Max. | I13: Avg. | J13: Max. | K13: Avg. | L13: Max. | M13: Avg.
A14: Oxides of nitrogen | B14: Daily mean | C14: 200 mg/m3 | D14: =NOx!$O$19 -> 195.9 | E14: =NOx!$N$19 -> 180.7263053 | F14: =NOx!$O$34 -> 194.9 | G14: =NOx!N34 -> 180.4544041
B15: ½ hourly mean | C15: 400 mg/m3 | D15: =NOx!$M$19 -> 299 | E15: =NOx!$L$19 -> 180.7263053 | F15: =NOx!$M$34 -> 271.4 | G15: =NOx!L34 -> 180.4544041
A16: Particulates | B16: Daily mean | C16: 10 mg/m3 | D16: =Particulates!$O$19 -> 3 | E16: =Particulates!$N$19 -> 1.534410593 | F16: =Particulates!$O$34 -> 1.9 | G16: =Particulates!N34 -> 1.027547363
B17: ½ hourly mean | C17: 30 mg/m3 | D17: =Particulates!$M$19 -> 4.4 | E17: =Particulates!$L$19 -> 1.534410593 | F17: =Particulates!$M$34 -> 7 | G17: =Particulates!L34 -> 1.027547363
A18: Total Organic Carbon | B18: Daily mean | C18: 10 mg/m3 | D18: =TOC!$O$19 -> 36.1 | E18: =TOC!$N$19 -> 0.5993847073 | F18: =TOC!$O$34 -> 1.3 | G18: =TOC!N34 -> 0.4933032514
B19: ½ hourly mean | C19: 20 mg/m3 | D19: =TOC!$M$19 -> 158 | E19: =TOC!$L$19 -> 0.5993847073 | F19: =TOC!$M$34 -> 26.6 | G19: =TOC!L34 -> 0.4933032514
A20: Hydrogen chloride | B20: Daily mean | C20: 10 mg/m3 | D20: =HCl!$O$19 -> 8 | E20: =HCl!$N$19 -> 3.676682895 | F20: =HCl!$O$34 -> 7.2 | G20: =HCl!N34 -> 3.621117704
B21: ½ hourly mean | C21: 60 mg/m3 | D21: =HCl!$M$19 -> 33.5 | E21: =HCl!$L$19 -> 3.676682895 | F21: =HCl!$M$34 -> 23.4 | G21: =HCl!L34 -> 3.621117704
A22: Sulphur dioxide | B22: Daily mean | C22: 50 mg/m3 | D22: ='SO2'!$O$19 -> 60.6 | E22: ='SO2'!$N$19 -> 34.08740044 | F22: ='SO2'!$O$34 -> 45.5 | G22: ='SO2'!N34 -> 30.56474078
B23: ½ hourly mean | C23: 200 mg/m3 | D23: ='SO2'!$M$19 -> 204.7 | E23: ='SO2'!$L$19 -> 34.08740044 | F23: ='SO2'!$M$34 -> 464.9 | G23: ='SO2'!L34 -> 30.56474078
A24: Carbon monoxide | B24: Daily mean | C24: 50 mg/m3 | D24: ='CO 95% 10 min'!Q19 -> 10.6 | E24: ='CO 95% 10 min'!P19 -> 1.808333333 | F24: ='CO 95% 10 min'!Q34 -> 7.7 | G24: ='CO 95% 10 min'!P34 -> 1.208333333
B25: 95%ile 10-min avg | C25: 150 mg/m3 * | D25: ='CO 95% 10 min'!M19 -> 91.68699646 | E25: ='CO 95% 10 min'!N19 -> 1.808333333 | F25: ='CO 95% 10 min'!M34 -> 51.89881897 | G25: ='CO 95% 10 min'!P34 -> 1.208333333
A26: Ammonia | B26: Daily mean | C26: No limit set
A28: Comments :

Sheet HCl
A1: =+'Cover Page'!$B$29 -> Annual Performance Report 2022 | E1: =+'Cover Page'!$B$33 -> Suffolk Energy from Waste Facility
A3: Monitoring of Hydrogen Chloride emissions | D3: Whole Installation | G3: See Notes in Cell Q3 | J3: =+A3 -> Monitoring of Hydrogen Chloride emissions | N3: Per Combustion Line | Q3: Notes:
Q4: User to add logic to complete Whole installation, Table A5:G18. From the data in Per Combustion Line, Table J6:O79, subject to No. of lines installed
A5: mg/Nm3 | B5: 1/2 Hourly Reference Periods | E5: Daily Reference Periods
A6: =+'Cover Page'!C39 -> 2022 | B6: 1/2 hourly HCl ELV | C6: Monthly 1/2 hourly mean | D6: Highest 1/2 hourly maximum | E6: Daily HCl ELV | F6: Monthly daily mean | G6: Highest daily maximum | J6: =+A6 -> 2022 | K6: mg/Nm3 | L6: Monthly 1/2 hourly mean | M6: Monthly 1/2 hourly maximum | N6: Monthly daily mean | O6: Monthly daily maximum
A7: Jan | B7: 60 | C7: =+AVERAGE(L7,L22) -> 2.45 | D7: =+AVERAGE(M7,M22) -> 8.05 | E7: 10 | F7: =AVERAGE(N7,N22) -> 2.45 | G7: =AVERAGE(O7,O22) -> 3.95 | J7: A1 | K7: Jan | L7: 2.7 | M7: 5.2 | N7: 2.7 | O7: 3.6
A8: Feb | B8: 60 | C8: =+AVERAGE(L8,L23) -> 2.4 | D8: 6.45 | E8: 10 | F8: =AVERAGE(N8,N23) -> 2.4 | G8: 4.1 | K8: Feb | L8: 2.4 | M8: 6.3 | N8: 2.4 | O8: 4
A9: Mar | B9: 60 | C9: =+AVERAGE(L9,L24) -> 3.25 | D9: 9.8 | E9: 10 | F9: =AVERAGE(N9,N24) -> 3.25 | G9: 6.05 | K9: Mar | L9: 3.5 | M9: 9.4 | N9: 3.5 | O9: 6.3 | Q9: Whole Installation table A5:G18:
A10: Apr | B10: 60 | C10: =+AVERAGE(L10,L25) -> 3.3 | D10: 10.05 | E10: 10 | F10: =AVERAGE(N10,N25) -> 3.3 | G10: 6.3 | K10: Apr | L10: 3.9 | M10: 10.1 | N10: 3.9 | O10: 7.1 | Q10: Mean: for 1/2 hourly and daily periods calculate mean of values across all operational combustion lines for the month
A11: May | B11: 60 | C11: =+AVERAGE(L11,L26) -> 4 | D11: 15.1 | E11: 10 | F11: =AVERAGE(N11,N26) -> 4 | G11: 6.1 | K11: May | L11: 3.1 | M11: 14.6 | N11: 3.1 | O11: 5.2
A12: Jun | B12: 60 | C12: =+AVERAGE(L12,L27) -> 3.35 | D12: 18.75 | E12: 10 | F12: =AVERAGE(N12,N27) -> 3.35 | G12: 6.3 | K12: Jun | L12: 3.1 | M12: 22.6 | N12: 3.1 | O12: 6.4
A13: Jul | B13: 60 | C13: =+AVERAGE(L13,L28) -> 5.15 | D13: 28.45 | E13: 10 | F13: =AVERAGE(N13,N28) -> 5.15 | G13: 7.3 | K13: Jul | L13: 5.5 | M13: 33.5 | N13: 5.5 | O13: 8 | Q13: Maximum: for 1/2 hourly and daily periods use the highest value across all operational combustion lines for the month
A14: Aug | B14: 60 | C14: =+AVERAGE(L14,L29) -> 4.65 | D14: 16.55 | E14: 10 | F14: =AVERAGE(N14,N29) -> 4.65 | G14: 6.7 | K14: Aug | L14: 4.4 | M14: 16.7 | N14: 4.4 | O14: 6.7
A15: Sep | B15: 60 | C15: =+AVERAGE(L15,L30) -> 4.85 | D15: 11.55 | E15: 10 | F15: =AVERAGE(N15,N30) -> 4.85 | G15: 6.7 | K15: Sep | L15: 5 | M15: 14.3 | N15: 5 | O15: 6.9
A16: Oct | B16: 60 | C16: =+AVERAGE(L16,L31) -> 3.288709677 | D16: 12.445 | E16: 10 | F16: =AVERAGE(N16,N31) -> 3.288709677 | G16: 5.665 | K16: Oct | L16: 3.211935484 | M16: 16.47 | N16: 3.211935484 | O16: 5.28
A17: Nov | B17: 60 | C17: =+AVERAGE(L17,L32) -> 4.538166667 | D17: 16.995 | E17: 10 | F17: =AVERAGE(N17,N32) -> 4.538166667 | G17: 7.035 | K17: Nov | L17: 4.442333333 | M17: 12.53 | N17: 4.442333333 | O17: 6.87
A18: Dec | B18: 60 | C18: =+AVERAGE(L18,L33) -> 2.559927249 | D18: 13.68 | E18: 10 | F18: =AVERAGE(N18,N33) -> 2.559927249 | G18: 6.285 | K18: Dec | L18: 2.865925926 | M18: 18.18 | N18: 2.865925926 | O18: 6.36
K19: Annual | L19: =AVERAGE(L7:L18) -> 3.676682895 | M19: =MAX(M7:M18) -> 33.5 | N19: =AVERAGE(N7:N18) -> 3.676682895 | O19: =MAX(O7:O18) -> 8
J21: =+A6 -> 2022 | K21: mg/Nm3 | L21: Monthly 1/2 hourly mean | M21: Monthly 1/2 hourly maximum | N21: Monthly daily mean | O21: Monthly daily maximum
J22: A2 | K22: Jan | L22: 2.2 | M22: 10.9 | N22: 2.2 | O22: 4.3
K23: Feb | L23: 2.4 | M23: 6.6 | N23: 2.4 | O23: 4.2
K24: Mar | L24: 3 | M24: 10.2 | N24: 3 | O24: 5.8
K25: Apr | L25: 2.7 | M25: 10 | N25: 2.7 | O25: 5.5
K26: May | L26: 4.9 | M26: 15.6 | N26: 4.9 | O26: 7
K27: Jun | L27: 3.6 | M27: 14.9 | N27: 3.6 | O27: 6.2
K28: Jul | L28: 4.8 | M28: 23.4 | N28: 4.8 | O28: 6.6
K29: Aug | L29: 4.9 | M29: 16.4 | N29: 4.9 | O29: 6.7
K30: Sep | L30: 4.7 | M30: 8.8 | N30: 4.7 | O30: 6.5
K31: Oct | L31: 3.365483871 | M31: 8.42 | N31: 3.365483871 | O31: 6.05
K32: Nov | L32: 4.634 | M32: 21.46 | N32: 4.634 | O32: 7.2
K33: Dec | L33: 2.253928571 | M33: 9.18 | N33: 2.253928571 | O33: 6.21
K34: Annual | L34: =AVERAGE(L22:L33) -> 3.621117704 | M34: =MAX(M22:M33) -> 23.4 | N34: =AVERAGE(N22:N33) -> 3.621117704 | O34: =MAX(O22:O33) -> 7.2
J36: =+A6 -> 2022 | K36: mg/Nm3 | L36: Monthly 1/2 hourly mean | M36: Monthly 1/2 hourly maximum | N36: Monthly daily mean | O36: Monthly daily maximum
J37: A3 | K37: Jan
K38: Feb
K39: Mar
K40: Apr
K41: May
K42: Jun
K43: Jul
K44: Aug
K45: Sep
K46: Oct
K47: Nov
A48: Comments : | K48: Dec
K49: Annual | L49: =AVERAGE(L37:L48) ->  | M49: =MAX(M37:M48) -> 0 | N49: =AVERAGE(N37:N48) ->  | O49: =MAX(O37:O48) -> 0
J51: =+A6 -> 2022 | K51: mg/Nm3 | L51: Monthly 1/2 hourly mean | M51: Monthly 1/2 hourly maximum | N51: Monthly daily mean | O51: Monthly daily maximum
J52: A4 | K52: Jan
K53: Feb
K54: Mar
K55: Apr
K56: May
K57: Jun
K58: Jul
K59: Aug
K60: Sep
K61: Oct
K62: Nov
K63: Dec
K64: Annual | L64: =AVERAGE(L52:L63) ->  | M64: =MAX(M52:M63) -> 0 | N64: =AVERAGE(N52:N63) ->  | O64: =MAX(O52:O63) -> 0
J66: =+A6 -> 2022 | K66: mg/Nm3 | L66: Monthly 1/2 hourly mean | M66: Monthly 1/2 hourly maximum | N66: Monthly daily mean | O66: Monthly daily maximum
J67: A5 | K67: Jan
K68: Feb
K69: Mar
K70: Apr
K71: May
K72: Jun
K73: Jul
K74: Aug
K75: Sep
K76: Oct
K77: Nov
K78: Dec
K79: Annual | L79: =AVERAGE(L67:L78) ->  | M79: =MAX(M67:M78) -> 0 | N79: =AVERAGE(N67:N78) ->  | O79: =MAX(O67:O78) -> 0

Sheet SO2
A1: =+'Cover Page'!$B$29 -> Annual Performance Report 2022 | E1: =+'Cover Page'!$B$33 -> Suffolk Energy from Waste Facility
A3: Monitoring of Sulphur dioxide emissions | D3: Whole Installation | G3: See Notes in Cell Q3 | J3: =+A3 -> Monitoring of Sulphur dioxide emissions | N3: Per Combustion Line | Q3: Notes:
Q4: User to add logic to complete Whole installation, Table A5:G18. From the data in Per Combustion Line, Table J6:O79, subject to No. of lines installed
A5: mg/Nm3 | B5: 1/2 Hourly Reference Periods | E5: Daily Reference Periods
A6: =+'Cover Page'!C39 -> 2022 | B6: 1/2 hourly SO2 ELV | C6: Monthly 1/2 hourly mean | D6: Highest 1/2 hourly maximum | E6: Daily SO2 ELV | F6: Monthly daily mean | G6: Highest daily maximum | J6: =+A6 -> 2022 | K6: mg/Nm3 | L6: Monthly 1/2 hourly mean | M6: Monthly 1/2 hourly maximum | N6: Monthly daily mean | O6: Monthly daily maximum
A7: Jan | B7: 200 | C7: =AVERAGE(L7,L22) -> 34.2 | D7: =AVERAGE(M7,M22) -> 309.65 | E7: 50 | F7: =AVERAGE(N7,N22) -> 34.2 | G7: =AVERAGE(O7,O22) -> 41.6 | J7: A1 | K7: Jan | L7: 37.5 | M7: 154.4 | N7: 37.5 | O7: 42.2
A8: Feb | B8: 200 | C8: =AVERAGE(L8,L23) -> 35.1 | D8: 146.35 | E8: 50 | F8: =AVERAGE(N8,N23) -> 35.1 | G8: 40.35 | K8: Feb | L8: 36.8 | M8: 204.7 | N8: 36.8 | O8: 42.1
A9: Mar | B9: 200 | C9: =AVERAGE(L9,L24) -> 31.55 | D9: 129.65 | E9: 50 | F9: =AVERAGE(N9,N24) -> 31.55 | G9: 40.1 | K9: Mar | L9: 33.2 | M9: 151.7 | N9: 33.2 | O9: 40.7 | Q9: Whole Installation table A5:G18:
A10: Apr | B10: 200 | C10: =AVERAGE(L10,L25) -> 29.75 | D10: 85.95 | E10: 50 | F10: =AVERAGE(N10,N25) -> 29.75 | G10: 38.15 | K10: Apr | L10: 28.4 | M10: 66.9 | N10: 28.4 | O10: 39 | Q10: Mean: for 1/2 hourly and daily periods calculate mean of values across all operational combustion lines for the month
A11: May | B11: 200 | C11: =AVERAGE(L11,L26) -> 31.8 | D11: 89.3 | E11: 50 | F11: =AVERAGE(N11,N26) -> 31.8 | G11: 35.3 | K11: May | L11: 36.9 | M11: 102.4 | N11: 36.9 | O11: 40
A12: Jun | B12: 200 | C12: =AVERAGE(L12,L27) -> 33.05 | D12: 125.5 | E12: 50 | F12: =AVERAGE(N12,N27) -> 33.05 | G12: 42 | K12: Jun | L12: 32.9 | M12: 124.4 | N12: 32.9 | O12: 38.5
A13: Jul | B13: 200 | C13: =AVERAGE(L13,L28) -> 29.5 | D13: 129.45 | E13: 50 | F13: =AVERAGE(N13,N28) -> 29.5 | G13: 38.1 | K13: Jul | L13: 30.2 | M13: 114.3 | N13: 30.2 | O13: 39.1 | Q13: Maximum: for 1/2 hourly and daily periods use the highest value across all operational combustion lines for the month
A14: Aug | B14: 200 | C14: =AVERAGE(L14,L29) -> 26.2 | D14: 66.25 | E14: 50 | F14: =AVERAGE(N14,N29) -> 26.2 | G14: 35.05 | K14: Aug | L14: 27.5 | M14: 72.4 | N14: 27.5 | O14: 39.7
A15: Sep | B15: 200 | C15: =AVERAGE(L15,L30) -> 30.65 | D15: 75.35 | E15: 50 | F15: =AVERAGE(N15,N30) -> 30.65 | G15: 38.95 | K15: Sep | L15: 33.4 | M15: 86 | N15: 33.4 | O15: 40.7
A16: Oct | B16: 200 | C16: =AVERAGE(L16,L31) -> 36.59354839 | D16: 112.9 | E16: 50 | F16: =AVERAGE(N16,N31) -> 36.59354839 | G16: 41.55 | K16: Oct | L16: 37.85806452 | M16: 129.8 | N16: 37.85806452 | O16: 43
A17: Nov | B17: 200 | C17: =AVERAGE(L17,L32) -> 31.94833333 | D17: 154.3 | E17: 50 | F17: =AVERAGE(N17,N32) -> 31.94833333 | G17: 40.4 | K17: Nov | L17: 34.81666667 | M17: 158 | N17: 34.81666667 | O17: 41
A18: Dec | B18: 200 | C18: =AVERAGE(L18,L33) -> 37.57096561 | D18: 106 | E18: 50 | F18: =AVERAGE(N18,N33) -> 37.57096561 | G18: 50.5 | K18: Dec | L18: 39.57407407 | M18: 106.6 | N18: 39.57407407 | O18: 60.6
K19: Annual | L19: =AVERAGE(L7:L18) -> 34.08740044 | M19: =MAX(M7:M18) -> 204.7 | N19: =AVERAGE(N7:N18) -> 34.08740044 | O19: =MAX(O7:O18) -> 60.6
J21: =+A6 -> 2022 | K21: mg/Nm3 | L21: Monthly 1/2 hourly mean | M21: Monthly 1/2 hourly maximum | N21: Monthly daily mean | O21: Monthly daily maximum
J22: A2 | K22: Jan | L22: 30.9 | M22: 464.9 | N22: 30.9 | O22: 41
K23: Feb | L23: 33.4 | M23: 88 | N23: 33.4 | O23: 38.6
K24: Mar | L24: 29.9 | M24: 107.6 | N24: 29.9 | O24: 39.5
K25: Apr | L25: 31.1 | M25: 105 | N25: 31.1 | O25: 37.3
K26: May | L26: 26.7 | M26: 76.2 | N26: 26.7 | O26: 30.6
K27: Jun | L27: 33.2 | M27: 126.6 | N27: 33.2 | O27: 45.5
K28: Jul | L28: 28.8 | M28: 144.6 | N28: 28.8 | O28: 37.1
K29: Aug | L29: 24.9 | M29: 60.1 | N29: 24.9 | O29: 30.4
K30: Sep | L30: 27.9 | M30: 64.7 | N30: 27.9 | O30: 37.2
K31: Oct | L31: 35.32903226 | M31: 96 | N31: 35.32903226 | O31: 40.1
K32: Nov | L32: 29.08 | M32: 150.6 | N32: 29.08 | O32: 39.8
K33: Dec | L33: 35.56785714 | M33: 105.4 | N33: 35.56785714 | O33: 40.4
K34: Annual | L34: =AVERAGE(L22:L33) -> 30.56474078 | M34: =MAX(M22:M33) -> 464.9 | N34: =AVERAGE(N22:N33) -> 30.56474078 | O34: =MAX(O22:O33) -> 45.5
J36: =+A6 -> 2022 | K36: mg/Nm3 | L36: Monthly 1/2 hourly mean | M36: Monthly 1/2 hourly maximum | N36: Monthly daily mean | O36: Monthly daily maximum
J37: A3 | K37: Jan
K38: Feb
K39: Mar
K40: Apr
K41: May
K42: Jun
K43: Jul
K44: Aug
K45: Sep
K46: Oct
K47: Nov
A48: Comments : | K48: Dec
K49: Annual | L49: =AVERAGE(L37:L48) ->  | M49: =MAX(M37:M48) -> 0 | N49: =AVERAGE(N37:N48) ->  | O49: =MAX(O37:O48) -> 0
J51: =+A6 -> 2022 | K51: mg/Nm3 | L51: Monthly 1/2 hourly mean | M51: Monthly 1/2 hourly maximum | N51: Monthly daily mean | O51: Monthly daily maximum
J52: A4 | K52: Jan
K53: Feb
K54: Mar
K55: Apr
K56: May
K57: Jun
K58: Jul
K59: Aug
K60: Sep
K61: Oct
K62: Nov
K63: Dec
K64: Annual | L64: =AVERAGE(L52:L63) ->  | M64: =MAX(M52:M63) -> 0 | N64: =AVERAGE(N52:N63) ->  | O64: =MAX(O52:O63) -> 0
J66: =+A6 -> 2022 | K66: mg/Nm3 | L66: Monthly 1/2 hourly mean | M66: Monthly 1/2 hourly maximum | N66: Monthly daily mean | O66: Monthly daily maximum
J67: A5 | K67: Jan
K68: Feb
K69: Mar
K70: Apr
K71: May
K72: Jun
K73: Jul
K74: Aug
K75: Sep
K76: Oct
K77: Nov
K78: Dec
K79: Annual | L79: =AVERAGE(L67:L78) ->  | M79: =MAX(M67:M78) -> 0 | N79: =AVERAGE(N67:N78) ->  | O79: =MAX(O67:O78) -> 0

Sheet NOx
A1: =+'Cover Page'!$B$29 -> Annual Performance Report 2022 | E1: =+'Cover Page'!$B$33 -> Suffolk Energy from Waste Facility
A3: Monitoring of Oxides of Nitrogen emissions | D3: Whole Installation | G3: See Notes in Cell Q3 | J3: =+A3 -> Monitoring of Oxides of Nitrogen emissions | N3: Per Combustion Line | Q3: Notes:
Q4: User to add logic to complete Whole installation, Table A5:G18. From the data in Per Combustion Line, Table J6:O79, subject to No. of lines installed
A5: mg/Nm3 | B5: 1/2 Hourly Reference Periods | E5: Daily Reference Periods
A6: =+'Cover Page'!C39 -> 2022 | B6: 1/2 hourly NOx ELV | C6: Monthly 1/2 hourly mean | D6: Highest 1/2 hourly maximum | E6: Daily NOx ELV | F6: Monthly daily mean | G6: Highest daily maximum | J6: =+A6 -> 2022 | K6: mg/Nm3 | L6: Monthly 1/2 hourly mean | M6: Monthly 1/2 hourly maximum | N6: Monthly daily mean | O6: Monthly daily maximum
A7: Jan | B7: 400 | C7: =AVERAGE(L7,L22) -> 180 | D7: =AVERAGE(M7,M22) -> 205.45 | E7: 200 | F7: =AVERAGE(N7,N22) -> 180 | G7: =AVERAGE(O7,O22) -> 180.85 | J7: A1 | K7: Jan | L7: 180 | M7: 202.7 | N7: 180 | O7: 181
A8: Feb | B8: 400 | C8: =AVERAGE(L8,L23) -> 180.45 | D8: 238.7 | E8: 200 | F8: =AVERAGE(N8,N23) -> 180.45 | G8: 184.45 | K8: Feb | L8: 180.7 | M8: 249.6 | N8: 180.7 | O8: 187.2
A9: Mar | B9: 400 | C9: =AVERAGE(L9,L24) -> 180.15 | D9: 262 | E9: 200 | F9: =AVERAGE(N9,N24) -> 180.15 | G9: 183.95 | K9: Mar | L9: 180.3 | M9: 299 | N9: 180.3 | O9: 185.9 | Q9: Whole Installation table A5:G18:
A10: Apr | B10: 400 | C10: =AVERAGE(L10,L25) -> 180.6 | D10: 277.9 | E10: 200 | F10: =AVERAGE(N10,N25) -> 180.6 | G10: 184.35 | K10: Apr | L10: 181 | M10: 284.4 | N10: 181 | O10: 186.2 | Q10: Mean: for 1/2 hourly and daily periods calculate mean of values across all operational combustion lines for the month
A11: May | B11: 400 | C11: =AVERAGE(L11,L26) -> 180.75 | D11: 208.5 | E11: 200 | F11: =AVERAGE(N11,N26) -> 180.75 | G11: 184.45 | K11: May | L11: 181.5 | M11: 217.9 | N11: 181.5 | O11: 188.8
A12: Jun | B12: 400 | C12: =AVERAGE(L12,L27) -> 182.15 | D12: 256.15 | E12: 200 | F12: =AVERAGE(N12,N27) -> 182.15 | G12: 192.05 | K12: Jun | L12: 183 | M12: 248.5 | N12: 183 | O12: 195.9
A13: Jul | B13: 400 | C13: =AVERAGE(L13,L28) -> 180.95 | D13: 246.05 | E13: 200 | F13: =AVERAGE(N13,N28) -> 180.95 | G13: 188.75 | K13: Jul | L13: 180.2 | M13: 239.3 | N13: 180.2 | O13: 182.6 | Q13: Maximum: for 1/2 hourly and daily periods use the highest value across all operational combustion lines for the month
A14: Aug | B14: 400 | C14: =AVERAGE(L14,L29) -> 180.3 | D14: 257.6 | E14: 200 | F14: =AVERAGE(N14,N29) -> 180.3 | G14: 185.45 | K14: Aug | L14: 180.3 | M14: 247.3 | N14: 180.3 | O14: 186.9
A15: Sep | B15: 400 | C15: =AVERAGE(L15,L30) -> 180.45 | D15: 245.95 | E15: 200 | F15: =AVERAGE(N15,N30) -> 180.45 | G15: 184.15 | K15: Sep | L15: 180.2 | M15: 231 | N15: 180.2 | O15: 182.1
A16: Oct | B16: 400 | C16: =AVERAGE(L16,L31) -> 180.3806452 | D16: 260.2 | E16: 200 | F16: =AVERAGE(N16,N31) -> 180.3806452 | G16: 187.5 | K16: Oct | L16: 180.5967742 | M16: 265 | N16: 180.5967742 | O16: 190.2
A17: Nov | B17: 400 | C17: =AVERAGE(L17,L32) -> 180.305 | D17: 237.75 | E17: 200 | F17: =AVERAGE(N17,N32) -> 180.305 | G17: 186.15 | K17: Nov | L17: 180.3966667 | M17: 232.1 | N17: 180.3966667 | O17: 185.9
A18: Dec | B18: 400 | C18: =AVERAGE(L18,L33) -> 180.5986111 | D18: 274.9 | E18: 200 | F18: =AVERAGE(N18,N33) -> 180.5986111 | G18: 188.35 | K18: Dec | L18: 180.5222222 | M18: 295.7 | N18: 180.5222222 | O18: 191.6
K19: Annual | L19: =AVERAGE(L7:L18) -> 180.7263053 | M19: =MAX(M7:M18) -> 299 | N19: =AVERAGE(N7:N18) -> 180.7263053 | O19: =MAX(O7:O18) -> 195.9
J21: =+A6 -> 2022 | K21: mg/Nm3 | L21: Monthly 1/2 hourly mean | M21: Monthly 1/2 hourly maximum | N21: Monthly daily mean | O21: Monthly daily maximum
J22: A2 | K22: Jan | L22: 180 | M22: 208.2 | N22: 180 | O22: 180.7
K23: Feb | L23: 180.2 | M23: 227.8 | N23: 180.2 | O23: 181.7
K24: Mar | L24: 180 | M24: 225 | N24: 180 | O24: 182
K25: Apr | L25: 180.2 | M25: 271.4 | N25: 180.2 | O25: 182.5
K26: May | L26: 180 | M26: 199.1 | N26: 180 | O26: 180.1
K27: Jun | L27: 181.3 | M27: 263.8 | N27: 181.3 | O27: 188.2
K28: Jul | L28: 181.7 | M28: 252.8 | N28: 181.7 | O28: 194.9
K29: Aug | L29: 180.3 | M29: 267.9 | N29: 180.3 | O29: 184
K30: Sep | L30: 180.7 | M30: 260.9 | N30: 180.7 | O30: 186.2
K31: Oct | L31: 180.1645161 | M31: 255.4 | N31: 180.1645161 | O31: 184.8
K32: Nov | L32: 180.2133333 | M32: 243.4 | N32: 180.2133333 | O32: 186.4
K33: Dec | L33: 180.675 | M33: 254.1 | N33: 180.675 | O33: 185.1
K34: Annual | L34: =AVERAGE(L22:L33) -> 180.4544041 | M34: =MAX(M22:M33) -> 271.4 | N34: =AVERAGE(N22:N33) -> 180.4544041 | O34: =MAX(O22:O33) -> 194.9
J36: =+A6 -> 2022 | K36: mg/Nm3 | L36: Monthly 1/2 hourly mean | M36: Monthly 1/2 hourly maximum | N36: Monthly daily mean | O36: Monthly daily maximum
J37: A3 | K37: Jan
K38: Feb
K39: Mar
K40: Apr
K41: May
K42: Jun
K43: Jul
K44: Aug
K45: Sep
K46: Oct
K47: Nov
A48: Comments : | K48: Dec
K49: Annual | L49: =AVERAGE(L37:L48) ->  | M49: =MAX(M37:M48) -> 0 | N49: =AVERAGE(N37:N48) ->  | O49: =MAX(O37:O48) -> 0
J51: =+A6 -> 2022 | K51: mg/Nm3 | L51: Monthly 1/2 hourly mean | M51: Monthly 1/2 hourly maximum | N51: Monthly daily mean | O51: Monthly daily maximum
J52: A4 | K52: Jan
K53: Feb
K54: Mar
K55: Apr
K56: May
K57: Jun
K58: Jul
K59: Aug
K60: Sep
K61: Oct
K62: Nov
K63: Dec
K64: Annual | L64: =AVERAGE(L52:L63) ->  | M64: =MAX(M52:M63) -> 0 | N64: =AVERAGE(N52:N63) ->  | O64: =MAX(O52:O63) -> 0
J66: =+A6 -> 2022 | K66: mg/Nm3 | L66: Monthly 1/2 hourly mean | M66: Monthly 1/2 hourly maximum | N66: Monthly daily mean | O66: Monthly daily maximum
J67: A5 | K67: Jan
K68: Feb
K69: Mar
K70: Apr
K71: May
K72: Jun
K73: Jul
K74: Aug
K75: Sep
K76: Oct
K77: Nov
K78: Dec
K79: Annual | L79: =AVERAGE(L67:L78) ->  | M79: =MAX(M67:M78) -> 0 | N79: =AVERAGE(N67:N78) ->  | O79: =MAX(O67:O78) -> 0

Sheet TOC
A1: =+'Cover Page'!$B$29 -> Annual Performance Report 2022 | E1: =+'Cover Page'!$B$33 -> Suffolk Energy from Waste Facility
A3: Monitoring of Total organic carbon emissions | D3: Whole Installation | G3: See Notes in Cell Q3 | J3: =+A3 -> Monitoring of Total organic carbon emissions | N3: Per Combustion Line | Q3: Notes:
Q4: User to add logic to complete Whole installation, Table A5:G18. From the data in Per Combustion Line, Table J6:O79, subject to No. of lines installed
A5: mg/Nm3 | B5: 1/2 Hourly Reference Periods | E5: Daily Reference Periods
A6: =+'Cover Page'!C39 -> 2022 | B6: 1/2 hourly TOC ELV | C6: Monthly 1/2 hourly mean | D6: Highest 1/2 hourly maximum | E6: Daily TOC ELV | F6: Monthly daily mean | G6: Highest daily maximum | J6: =+A6 -> 2022 | K6: mg/Nm3 | L6: Monthly 1/2 hourly mean | M6: Monthly 1/2 hourly maximum | N6: Monthly daily mean | O6: Monthly daily maximum
A7: Jan | B7: 20 | C7: =AVERAGE(L7,L22) -> 0.4 | D7: =AVERAGE(M7,M22) -> 3.2 | E7: 10 | F7: =AVERAGE(N7,N22) -> 0.4 | G7: =AVERAGE(O7,O22) -> 0.65 | J7: A1 | K7: Jan | L7: 0.4 | M7: 1.2 | N7: 0.4 | O7: 0.8
A8: Feb | B8: 20 | C8: =AVERAGE(L8,L23) -> 0.4 | D8: 4.4 | E8: 10 | F8: =AVERAGE(N8,N23) -> 0.4 | G8: 0.7 | K8: Feb | L8: 0.4 | M8: 6.4 | N8: 0.4 | O8: 0.7
A9: Mar | B9: 20 | C9: =AVERAGE(L9,L24) -> 0.4 | D9: 7.95 | E9: 10 | F9: =AVERAGE(N9,N24) -> 0.4 | G9: 0.55 | K9: Mar | L9: 0.4 | M9: 14.8 | N9: 0.4 | O9: 0.6 | Q9: Whole Installation table A5:G18:
A10: Apr | B10: 20 | C10: =AVERAGE(L10,L25) -> 0.45 | D10: 9.2 | E10: 10 | F10: =AVERAGE(N10,N25) -> 0.45 | G10: 0.8 | K10: Apr | L10: 0.4 | M10: 2.6 | N10: 0.4 | O10: 0.6 | Q10: Mean: for 1/2 hourly and daily periods calculate mean of values across all operational combustion lines for the month
A11: May | B11: 20 | C11: =AVERAGE(L11,L26) -> 0.75 | D11: 2 | E11: 10 | F11: =AVERAGE(N11,N26) -> 0.75 | G11: 1.1 | K11: May | L11: 0.8 | M11: 2.3 | N11: 0.8 | O11: 1.5
A12: Jun | B12: 20 | C12: =AVERAGE(L12,L27) -> 0.6 | D12: 18.5 | E12: 10 | F12: =AVERAGE(N12,N27) -> 0.6 | G12: 1.1 | K12: Jun | L12: 0.6 | M12: 10.4 | N12: 0.6 | O12: 0.9
A13: Jul | B13: 20 | C13: =AVERAGE(L13,L28) -> 0.6 | D13: 17 | E13: 10 | F13: =AVERAGE(N13,N28) -> 0.6 | G13: 0.95 | K13: Jul | L13: 0.6 | M13: 22.8 | N13: 0.6 | O13: 1.1 | Q13: Maximum: for 1/2 hourly and daily periods use the highest value across all operational combustion lines for the month
A14: Aug | B14: 20 | C14: =AVERAGE(L14,L29) -> 0.6 | D14: 11.55 | E14: 10 | F14: =AVERAGE(N14,N29) -> 0.6 | G14: 0.75 | K14: Aug | L14: 0.6 | M14: 19.4 | N14: 0.6 | O14: 0.8
A15: Sep | B15: 20 | C15: =AVERAGE(L15,L30) -> 0.5 | D15: 6.35 | E15: 10 | F15: =AVERAGE(N15,N30) -> 0.5 | G15: 0.7 | K15: Sep | L15: 0.5 | M15: 2.3 | N15: 0.5 | O15: 0.7
A16: Oct | B16: 20 | C16: =AVERAGE(L16,L31) -> 0.4435483871 | D16: 8.95 | E16: 10 | F16: =AVERAGE(N16,N31) -> 0.4435483871 | G16: 0.6 | K16: Oct | L16: 0.4548387097 | M16: 8 | N16: 0.4548387097 | O16: 0.6
A17: Nov | B17: 20 | C17: =AVERAGE(L17,L32) -> 0.985 | D17: 81.75 | E17: 10 | F17: =AVERAGE(N17,N32) -> 0.985 | G17: 18.3 | K17: Nov | L17: 1.593333333 | M17: 158 | N17: 1.593333333 | O17: 36.1
A18: Dec | B18: 20 | C18: =AVERAGE(L18,L33) -> 0.4275793651 | D18: 4.45 | E18: 10 | F18: =AVERAGE(N18,N33) -> 0.4275793651 | G18: 0.7 | K18: Dec | L18: 0.4444444444 | M18: 6.3 | N18: 0.4444444444 | O18: 0.7
K19: Annual | L19: =AVERAGE(L7:L18) -> 0.5993847073 | M19: =MAX(M7:M18) -> 158 | N19: =AVERAGE(N7:N18) -> 0.5993847073 | O19: =MAX(O7:O18) -> 36.1
J21: =+A6 -> 2022 | K21: mg/Nm3 | L21: Monthly 1/2 hourly mean | M21: Monthly 1/2 hourly maximum | N21: Monthly daily mean | O21: Monthly daily maximum
J22: A2 | K22: Jan | L22: 0.4 | M22: 5.2 | N22: 0.4 | O22: 0.5
K23: Feb | L23: 0.4 | M23: 2.4 | N23: 0.4 | O23: 0.7
K24: Mar | L24: 0.4 | M24: 1.1 | N24: 0.4 | O24: 0.5
K25: Apr | L25: 0.5 | M25: 15.8 | N25: 0.5 | O25: 1
K26: May | L26: 0.7 | M26: 1.7 | N26: 0.7 | O26: 0.7
K27: Jun | L27: 0.6 | M27: 26.6 | N27: 0.6 | O27: 1.3
K28: Jul | L28: 0.6 | M28: 11.2 | N28: 0.6 | O28: 0.8
K29: Aug | L29: 0.6 | M29: 3.7 | N29: 0.6 | O29: 0.7
K30: Sep | L30: 0.5 | M30: 10.4 | N30: 0.5 | O30: 0.7
K31: Oct | L31: 0.4322580645 | M31: 9.9 | N31: 0.4322580645 | O31: 0.6
K32: Nov | L32: 0.3766666667 | M32: 5.5 | N32: 0.3766666667 | O32: 0.5
K33: Dec | L33: 0.4107142857 | M33: 2.6 | N33: 0.4107142857 | O33: 0.7
K34: Annual | L34: =AVERAGE(L22:L33) -> 0.4933032514 | M34: =MAX(M22:M33) -> 26.6 | N34: =AVERAGE(N22:N33) -> 0.4933032514 | O34: =MAX(O22:O33) -> 1.3
J36: =+A6 -> 2022 | K36: mg/Nm3 | L36: Monthly 1/2 hourly mean | M36: Monthly 1/2 hourly maximum | N36: Monthly daily mean | O36: Monthly daily maximum
J37: A3 | K37: Jan
K38: Feb
K39: Mar
K40: Apr
K41: May
K42: Jun
K43: Jul
K44: Aug
K45: Sep
K46: Oct
K47: Nov
A48: Comments : | K48: Dec
K49: Annual | L49: =AVERAGE(L37:L48) ->  | M49: =MAX(M37:M48) -> 0 | N49: =AVERAGE(N37:N48) ->  | O49: =MAX(O37:O48) -> 0
J51: =+A6 -> 2022 | K51: mg/Nm3 | L51: Monthly 1/2 hourly mean | M51: Monthly 1/2 hourly maximum | N51: Monthly daily mean | O51: Monthly daily maximum
J52: A4 | K52: Jan
K53: Feb
K54: Mar
K55: Apr
K56: May
K57: Jun
K58: Jul
K59: Aug
K60: Sep
K61: Oct
K62: Nov
K63: Dec
K64: Annual | L64: =AVERAGE(L52:L63) ->  | M64: =MAX(M52:M63) -> 0 | N64: =AVERAGE(N52:N63) ->  | O64: =MAX(O52:O63) -> 0
J66: =+A6 -> 2022 | K66: mg/Nm3 | L66: Monthly 1/2 hourly mean | M66: Monthly 1/2 hourly maximum | N66: Monthly daily mean | O66: Monthly daily maximum
J67: A5 | K67: Jan
K68: Feb
K69: Mar
K70: Apr
K71: May
K72: Jun
K73: Jul
K74: Aug
K75: Sep
K76: Oct
K77: Nov
K78: Dec
K79: Annual | L79: =AVERAGE(L67:L78) ->  | M79: =MAX(M67:M78) -> 0 | N79: =AVERAGE(N67:N78) ->  | O79: =MAX(O67:O78) -> 0

Sheet Particulates
A1: =+'Cover Page'!$B$29 -> Annual Performance Report 2022 | E1: =+'Cover Page'!$B$33 -> Suffolk Energy from Waste Facility
A3: Monitoring of Particulate matter emissions | D3: Whole Installation | G3: See Notes in Cell Q3 | J3: =+A3 -> Monitoring of Particulate matter emissions | N3: Per Combustion Line | Q3: Notes:
Q4: User to add logic to complete Whole installation, Table A5:G18. From the data in Per Combustion Line, Table J6:O79, subject to No. of lines installed
A5: mg/Nm3 | B5: 1/2 Hourly Reference Periods | E5: Daily Reference Periods
A6: =+'Cover Page'!C39 -> 2022 | B6: 1/2 hourly PM ELV | C6: Monthly 1/2 hourly mean | D6: Highest 1/2 hourly maximum | E6: Daily PM ELV | F6: Monthly daily mean | G6: Highest daily maximum | J6: =+A6 -> 2022 | K6: mg/Nm3 | L6: Monthly 1/2 hourly mean | M6: Monthly 1/2 hourly maximum | N6: Monthly daily mean | O6: Monthly daily maximum
A7: Jan | B7: 30 | C7: =AVERAGE(L7,L22) -> 1 | D7: =AVERAGE(M7,M22) -> 2.85 | E7: 10 | F7: =AVERAGE(N7,N22) -> 1 | G7: =AVERAGE(O7,O22) -> 2 | J7: A1 | K7: Jan | L7: 1.1 | M7: 4.4 | N7: 1.1 | O7: 2.8
A8: Feb | B8: 30 | C8: =AVERAGE(L8,L23) -> 1 | D8: 1.5 | E8: 10 | F8: =AVERAGE(N8,N23) -> 1 | G8: 1.1 | K8: Feb | L8: 0.8 | M8: 1.4 | N8: 0.8 | O8: 0.9
A9: Mar | B9: 30 | C9: =AVERAGE(L9,L24) -> 1 | D9: 1.55 | E9: 10 | F9: =AVERAGE(N9,N24) -> 1 | G9: 1.35 | K9: Mar | L9: 1 | M9: 1.6 | N9: 1 | O9: 1.3 | Q9: Whole Installation table A5:G18:
A10: Apr | B10: 30 | C10: =AVERAGE(L10,L25) -> 0.95 | D10: 1.4 | E10: 10 | F10: =AVERAGE(N10,N25) -> 0.95 | G10: 1.25 | K10: Apr | L10: 0.8 | M10: 1.4 | N10: 0.8 | O10: 1.2 | Q10: Mean: for 1/2 hourly and daily periods calculate mean of values across all operational combustion lines for the month
A11: May | B11: 30 | C11: =AVERAGE(L11,L26) -> 1.4 | D11: 5.45 | E11: 10 | F11: =AVERAGE(N11,N26) -> 1.4 | G11: 1.9 | K11: May | L11: 1.2 | M11: 3.9 | N11: 1.2 | O11: 1.9
A12: Jun | B12: 30 | C12: =AVERAGE(L12,L27) -> 1.5 | D12: 2.6 | E12: 10 | F12: =AVERAGE(N12,N27) -> 1.5 | G12: 1.9 | K12: Jun | L12: 1.7 | M12: 2.7 | N12: 1.7 | O12: 2.2
A13: Jul | B13: 30 | C13: =AVERAGE(L13,L28) -> 1.7 | D13: 2.3 | E13: 10 | F13: =AVERAGE(N13,N28) -> 1.7 | G13: 1.9 | K13: Jul | L13: 2.2 | M13: 2.8 | N13: 2.2 | O13: 2.5 | Q13: Maximum: for 1/2 hourly and daily periods use the highest value across all operational combustion lines for the month
A14: Aug | B14: 30 | C14: =AVERAGE(L14,L29) -> 1.85 | D14: 2.35 | E14: 10 | F14: =AVERAGE(N14,N29) -> 1.85 | G14: 2 | K14: Aug | L14: 2.6 | M14: 3.3 | N14: 2.6 | O14: 2.8
A15: Sep | B15: 30 | C15: =AVERAGE(L15,L30) -> 1.9 | D15: 2.8 | E15: 10 | F15: =AVERAGE(N15,N30) -> 1.9 | G15: 2 | K15: Sep | L15: 2.7 | M15: 3.9 | N15: 2.7 | O15: 2.8
A16: Oct | B16: 30 | C16: =AVERAGE(L16,L31) -> 1.196774194 | D16: 2.65 | E16: 10 | F16: =AVERAGE(N16,N31) -> 1.196774194 | G16: 2.15 | K16: Oct | L16: 1.867741935 | M16: 3.3 | N16: 1.867741935 | O16: 3
A17: Nov | B17: 30 | C17: =AVERAGE(L17,L32) -> 1.046666667 | D17: 1.8 | E17: 10 | F17: =AVERAGE(N17,N32) -> 1.046666667 | G17: 1.25 | K17: Nov | L17: 1.56 | M17: 2.2 | N17: 1.56 | O17: 1.8
A18: Dec | B18: 30 | C18: =AVERAGE(L18,L33) -> 0.8283068783 | D18: =AVERAGE(M18,M33) -> 1.4 | E18: 10 | F18: =AVERAGE(N18,N33) -> 0.8283068783 | G18: 1.2 | K18: Dec | L18: 0.8851851852 | M18: 1.7 | N18: 0.8851851852 | O18: 1.5
K19: Annual | L19: =AVERAGE(L7:L18) -> 1.534410593 | M19: =MAX(M7:M18) -> 4.4 | N19: =AVERAGE(N7:N18) -> 1.534410593 | O19: =MAX(O7:O18) -> 3
J21: =+A6 -> 2022 | K21: mg/Nm3 | L21: Monthly 1/2 hourly mean | M21: Monthly 1/2 hourly maximum | N21: Monthly daily mean | O21: Monthly daily maximum
J22: A2 | K22: Jan | L22: 0.9 | M22: 1.3 | N22: 0.9 | O22: 1.2
K23: Feb | L23: 1.2 | M23: 1.6 | N23: 1.2 | O23: 1.3
K24: Mar | L24: 1 | M24: 1.5 | N24: 1 | O24: 1.4
K25: Apr | L25: 1.1 | M25: 1.4 | N25: 1.1 | O25: 1.3
K26: May | L26: 1.6 | M26: 7 | N26: 1.6 | O26: 1.9
K27: Jun | L27: 1.3 | M27: 2.5 | N27: 1.3 | O27: 1.6
K28: Jul | L28: 1.2 | M28: 1.8 | N28: 1.2 | O28: 1.3
K29: Aug | L29: 1.1 | M29: 1.4 | N29: 1.1 | O29: 1.2
K30: Sep | L30: 1.1 | M30: 1.7 | N30: 1.1 | O30: 1.2
K31: Oct | L31: 0.5258064516 | M31: 2 | N31: 0.5258064516 | O31: 1.3
K32: Nov | L32: 0.5333333333 | M32: 1.4 | N32: 0.5333333333 | O32: 0.7
K33: Dec | L33: 0.7714285714 | M33: 1.1 | N33: 0.7714285714 | O33: 0.9
K34: Annual | L34: =AVERAGE(L22:L33) -> 1.027547363 | M34: =MAX(M22:M33) -> 7 | N34: =AVERAGE(N22:N33) -> 1.027547363 | O34: =MAX(O22:O33) -> 1.9
J36: =+A6 -> 2022 | K36: mg/Nm3 | L36: Monthly 1/2 hourly mean | M36: Monthly 1/2 hourly maximum | N36: Monthly daily mean | O36: Monthly daily maximum
J37: A3 | K37: Jan
K38: Feb
K39: Mar
K40: Apr
K41: May
K42: Jun
K43: Jul
K44: Aug
K45: Sep
K46: Oct
K47: Nov
A48: Comments : | K48: Dec
K49: Annual | L49: =AVERAGE(L37:L48) ->  | M49: =MAX(M37:M48) -> 0 | N49: =AVERAGE(N37:N48) ->  | O49: =MAX(O37:O48) -> 0
J51: =+A6 -> 2022 | K51: mg/Nm3 | L51: Monthly 1/2 hourly mean | M51: Monthly 1/2 hourly maximum | N51: Monthly daily mean | O51: Monthly daily maximum
J52: A4 | K52: Jan
K53: Feb
K54: Mar
K55: Apr
K56: May
K57: Jun
K58: Jul
K59: Aug
K60: Sep
K61: Oct
K62: Nov
K63: Dec
K64: Annual | L64: =AVERAGE(L52:L63) ->  | M64: =MAX(M52:M63) -> 0 | N64: =AVERAGE(N52:N63) ->  | O64: =MAX(O52:O63) -> 0
J66: =+A6 -> 2022 | K66: mg/Nm3 | L66: Monthly 1/2 hourly mean | M66: Monthly 1/2 hourly maximum | N66: Monthly daily mean | O66: Monthly daily maximum
J67: A5 | K67: Jan
K68: Feb
K69: Mar
K70: Apr
K71: May
K72: Jun
K73: Jul
K74: Aug
K75: Sep
K76: Oct
K77: Nov
K78: Dec
K79: Annual | L79: =AVERAGE(L67:L78) ->  | M79: =MAX(M67:M78) -> 0 | N79: =AVERAGE(N67:N78) ->  | O79: =MAX(O67:O78) -> 0

Sheet CO 95% 10 min
A1: =+'Cover Page'!$B$29 -> Annual Performance Report 2022 | E1: =+'Cover Page'!$B$33 -> Suffolk Energy from Waste Facility
A3: Monitoring of Carbon Monoxide (10-minute avg) | E3: Whole Installation | H3: See Notes in Cell S3 | J3: =+A3 -> Monitoring of Carbon Monoxide (10-minute avg) | O3: Per Combustion Line | Q3: Notes: | S3: Notes:
S4: User to add logic to complete Whole installation, Table A5:H18. From the data in Per Combustion Line, Table K6:Q79, subject to No. of lines installed
A5: mg/Nm3 | B5: 10-minute Reference Periods | F5: Daily Reference Periods
A6: =+'Cover Page'!C39 -> 2022 | B6: 95%ile 10-min avg CO ELV | C6: 95%ile 10-min avg maximum | D6: Monthly CO 10-min avg mean | E6: 10-min avg maximum | F6: Daily CO ELV | G6: Monthly daily mean | H6: Highest daily maximum | K6: =+A6 -> 2022 | L6: mg/Nm3 | M6: 95%ile 10-min avg maximum | N6: Monthly CO 10-min avg mean | O6: 10-min avg maximum | P6: Monthly daily mean | Q6: Monthly daily maximum
A7: Jan | B7: 150 | C7: =AVERAGE(M7,M22) -> 3.029278994 | D7: =AVERAGE(N7,N22) -> 1 | E7: 362.1 | F7: 50 | G7: =AVERAGE(P7,P22) -> 1 | H7: =AVERAGE(Q7,Q22) -> 3.25 | K7: A1 | L7: Jan | M7: 3.552031994 | N7: 1.2 | O7: 339.9 | P7: 1.2 | Q7: 3.5
A8: Feb | B8: =+B7 -> 150 | C8: =AVERAGE(M8,M23) -> 2.780560493 | D8: =AVERAGE(N8,N23) -> 1 | E8: =AVERAGE(O8,O23) -> 353.3 | F8: =+F7 -> 50 | G8: =AVERAGE(P8,P23) -> 1 | H8: 3.25 | L8: Feb | M8: 3.201560974 | N8: 1.2 | O8: 422.2 | P8: 1.2 | Q8: 3.5
A9: Mar | B9: =+B8 -> 150 | C9: 2.759551048 | D9: 0.95 | E9: 285.55 | F9: =+F8 -> 50 | G9: =AVERAGE(P9,P24) -> 0.95 | H9: 3.75 | L9: Mar | M9: 3.911884069 | N9: 1.3 | O9: 352.7 | P9: 1.3 | Q9: 5.6 | S9: Whole Installation table A5:H18:
A10: Apr | B10: 150 | C10: 4.63531208 | D10: 0.9 | E10: 335.2 | F10: 50 | G10: =AVERAGE(P10,P25) -> 0.9 | H10: 3.75 | L10: Apr | M10: 3.437840939 | N10: 1 | O10: 392.7 | P10: 1 | Q10: 5 | S10: Mean: for 10-min and daily periods use average of all operational combustion lines.
A11: May | B11: 150 | C11: 48.10996485 | D11: 0.45 | E11: 268 | F11: 50 | G11: =AVERAGE(P11,P26) -> 0.45 | H11: 1.7 | L11: May | M11: 91.68699646 | N11: 0.6 | O11: 409 | P11: 0.6 | Q11: 2.9
A12: Jun | B12: 150 | C12: 25.30435753 | D12: 1.6 | E12: 508.85 | F12: 50 | G12: =AVERAGE(P12,P27) -> 1.6 | H12: 9.15 | L12: Jun | M12: 12.06966782 | N12: 2.2 | O12: 388.1 | P12: 2.2 | Q12: 10.6
A13: Jul | B13: 150 | C13: 18.6666441 | D13: 2.25 | E13: 398.8 | F13: 50 | G13: =AVERAGE(P13,P28) -> 2.25 | H13: 7 | L13: Jul | M13: 21.0571537 | N13: 2.7 | O13: 419.8 | P13: 2.7 | Q13: 7.8 | S13: Maximum: for 10-min and daily periods use the highest of all operational combustion lines in any month.
A14: Aug | B14: 150 | C14: 14.00992131 | D14: 1.75 | E14: 358.1 | F14: 50 | G14: =AVERAGE(P14,P29) -> 1.75 | H14: 6.85 | L14: Aug | M14: 21.15652657 | N14: 2.2 | O14: 330.1 | P14: 2.2 | Q14: 7.8
A15: Sep | B15: 150 | C15: 9.469481945 | D15: 2 | E15: 385.75 | F15: 50 | G15: =AVERAGE(P15,P30) -> 2 | H15: 6.9 | L15: Sep | M15: 13.19608688 | N15: 2.3 | O15: 376 | P15: 2.3 | Q15: 6.5
A16: Oct | B16: 150 | C16: 5.713829994 | D16: 2.15 | E16: 406 | F16: 50 | G16: =AVERAGE(P16,P31) -> 2.15 | H16: 4.55 | L16: Oct | M16: 7.586503029 | N16: 2.3 | O16: 368 | P16: 2.3 | Q16: 4.2
A17: Nov | B17: 150 | C17: 10.1764226 | D17: 2.35 | E17: 451.5 | F17: 50 | G17: =AVERAGE(P17,P32) -> 2.35 | H17: 5.85 | L17: Nov | M17: 14.82122707 | N17: 2.5 | O17: 389 | P17: 2.5 | Q17: 6.6
A18: Dec | B18: 150 | C18: 28.35787106 | D18: 1.7 | E18: 228 | F18: 50 | G18: =AVERAGE(P18,P33) -> 1.7 | H18: 3.8 | L18: Dec | M18: 4.816923141 | N18: 2.2 | O18: 272 | P18: 2.2 | Q18: 4.6
L19: Annual | M19: =MAX(M7:M18) -> 91.68699646 | N19: =AVERAGE(N7:N18) -> 1.808333333 | O19: =MAX(O7:O18) -> 422.2 | P19: =AVERAGE(P7:P18) -> 1.808333333 | Q19: =MAX(Q7:Q18) -> 10.6
K21: =+A6 -> 2022 | L21: mg/Nm3 | M21: 95%ile 10-min avg maximum | N21: Monthly CO 10-min avg mean | O21: 10-min avg maximum | P21: Monthly daily mean | Q21: Monthly daily maximum
K22: A2 | L22: Jan | M22: 2.506525993 | N22: 0.8 | O22: 384.3 | P22: 0.8 | Q22: 3
L23: Feb | M23: 2.359560013 | N23: 0.8 | O23: 284.4 | P23: 0.8 | Q23: 3
L24: Mar | M24: 1.607218027 | N24: 0.6 | O24: 218.4 | P24: 0.6 | Q24: 1.9
L25: Apr | M25: 5.832783222 | N25: 0.8 | O25: 277.7 | P25: 0.8 | Q25: 2.5
L26: May | M26: 4.532933235 | N26: 0.3 | O26: 127 | P26: 0.3 | Q26: 0.5
L27: Jun | M27: 38.53904724 | N27: 1 | O27: 629.6 | P27: 1 | Q27: 7.7
L28: Jul | M28: 16.27613449 | N28: 1.8 | O28: 377.8 | P28: 1.8 | Q28: 6.2
L29: Aug | M29: 6.863316059 | N29: 1.3 | O29: 386.1 | P29: 1.3 | Q29: 5.9
L30: Sep | M30: 5.742877007 | N30: 1.7 | O30: 395.5 | P30: 1.7 | Q30: 7.3
L31: Oct | M31: 3.84115696 | N31: 2 | O31: 444 | P31: 2 | Q31: 4.9
L32: Nov | M32: 5.531618118 | N32: 2.2 | O32: 514 | P32: 2.2 | Q32: 5.1
L33: Dec | M33: 51.89881897 | N33: 1.2 | O33: 184 | P33: 1.2 | Q33: 3
L34: Annual | M34: =MAX(M22:M33) -> 51.89881897 | N34: =AVERAGE(N22:N33) -> 1.208333333 | O34: =MAX(O22:O33) -> 629.6 | P34: =AVERAGE(P22:P33) -> 1.208333333 | Q34: =MAX(Q22:Q33) -> 7.7
K36: =+A6 -> 2022 | L36: mg/Nm3 | M36: 95%ile 10-min avg maximum | N36: Monthly CO 10-min avg mean | O36: 10-min avg maximum | P36: Monthly daily mean | Q36: Monthly daily maximum
K37: A3 | L37: Jan
L38: Feb
L39: Mar
L40: Apr
L41: May
L42: Jun
L43: Jul
L44: Aug
L45: Sep
L46: Oct
L47: Nov
A48: Comments : | L48: Dec
A49: Environment Agency explanatory note: The 10-minute average ELV is based on the “95th percentile”. In this case this means that 95% of the 10 minute averages in the relevant 24-hour period (i.e. 137) must be below 150 mg/Nm3, and 5% (i.e. 7) are allowed to be any value above 150 mg/Nm3. Whilst we expect operators to minimise CO emissions at all times, it is perfectly acceptable for the value of the maximum 10-minute average to be above 150 mg/Nm3, provided the 95th percentile ELV has been met for that period. | L49: Annual | M49: =AVERAGE(M37:M48) ->  | O49: =MAX(O37:O48) -> 0 | P49: =AVERAGE(P37:P48) ->  | Q49: =MAX(Q37:Q48) -> 0
K51: =+A6 -> 2022 | L51: mg/Nm3 | M51: 95%ile 10-min avg maximum | N51: Monthly CO 10-min avg mean | O51: 10-min avg maximum | P51: Monthly daily mean | Q51: Monthly daily maximum
K52: A4 | L52: Jan
L53: Feb
L54: Mar
L55: Apr
L56: May
L57: Jun
L58: Jul
L59: Aug
L60: Sep
L61: Oct
L62: Nov
L63: Dec
L64: Annual | M64: =AVERAGE(M52:M63) ->  | O64: =MAX(O52:O63) -> 0 | P64: =AVERAGE(P52:P63) ->  | Q64: =MAX(Q52:Q63) -> 0
K66: =+A6 -> 2022 | L66: mg/Nm3 | M66: 95%ile 10-min avg maximum | N66: Monthly CO 10-min avg mean | O66: 10-min avg maximum | P66: Monthly daily mean | Q66: Monthly daily maximum
K67: A5 | L67: Jan
L68: Feb
L69: Mar
L70: Apr
L71: May
L72: Jun
L73: Jul
L74: Aug
L75: Sep
L76: Oct
L77: Nov
L78: Dec
L79: Annual | M79: =AVERAGE(M67:M78) ->  | O79: =MAX(O67:O78) -> 0 | P79: =AVERAGE(P67:P78) ->  | Q79: =MAX(Q67:Q78) -> 0

Sheet NH3
A1: =+'Cover Page'!$B$29 -> Annual Performance Report 2022 | E1: =+'Cover Page'!$B$33 -> Suffolk Energy from Waste Facility
A3: Monitoring of Ammonia emissions | D3: Whole Installation | G3: See Notes in Cell Q3 | J3: =+A3 -> Monitoring of Ammonia emissions | N3: Per Combustion Line | Q3: Notes:
Q4: User to add logic to complete Whole installation, Table A5:G18. From the data in Per Combustion Line, Table J6:O79, subject to No. of lines installed
A5: mg/Nm3 | B5: 1/2 Hourly Reference Periods | E5: Daily Reference Periods
A6: =+'Cover Page'!C39 -> 2022 | B6: 1/2 hourly NH3 ELV | C6: Monthly 1/2 hourly mean | D6: Highest 1/2 hourly maximum | E6: Daily NH3 ELV | F6: Monthly daily mean | G6: Highest daily maximum | J6: =+A6 -> 2022 | K6: mg/Nm3 | L6: Monthly 1/2 hourly mean | M6: Monthly 1/2 hourly maximum | N6: Monthly daily mean | O6: Monthly daily maximum
A7: Jan | B7: 0 | C7: =AVERAGE(L7,L22) ->  | D7: =AVERAGE(M7,M22) ->  | E7: 10 | F7: =AVERAGE(N7,N22) ->  | G7: =AVERAGE(O7,O22) ->  | J7: A1 | K7: Jan
A8: Feb | B8: =+B7 -> 0 | C8: =AVERAGE(L8,L23) ->  | E8: =+E7 -> 10 | F8: =AVERAGE(N8,N23) ->  | K8: Feb
A9: Mar | B9: =+B8 -> 0 | C9: =AVERAGE(L9,L24) ->  | E9: =+E8 -> 10 | F9: =AVERAGE(N9,N24) ->  | K9: Mar | Q9: Whole Installation table A5:G18:
A10: Apr | B10: 0 | C10: =AVERAGE(L10,L25) ->  | E10: 10 | F10: =AVERAGE(N10,N25) ->  | K10: Apr | Q10: Mean: for 1/2 hourly and daily periods calculate mean of values across all operational combustion lines for the month
A11: May | B11: 0 | C11: =AVERAGE(L11,L26) ->  | E11: 10 | F11: =AVERAGE(N11,N26) ->  | K11: May
A12: Jun | B12: 0 | C12: =AVERAGE(L12,L27) ->  | E12: 10 | F12: =AVERAGE(N12,N27) ->  | K12: Jun
A13: Jul | B13: 0 | C13: =AVERAGE(L13,L28) ->  | E13: 10 | F13: =AVERAGE(N13,N28) ->  | K13: Jul | Q13: Maximum: for 1/2 hourly and daily periods use the highest value across all operational combustion lines for the month
A14: Aug | B14: 0 | C14: =AVERAGE(L14,L29) ->  | E14: 10 | F14: =AVERAGE(N14,N29) ->  | K14: Aug
A15: Sep | B15: 0 | C15: =AVERAGE(L15,L30) ->  | E15: 10 | F15: =AVERAGE(N15,N30) ->  | K15: Sep
A16: Oct | B16: 0 | C16: =AVERAGE(L16,L31) ->  | E16: 10 | F16: =AVERAGE(N16,N31) ->  | K16: Oct
A17: Nov | B17: 0 | C17: =AVERAGE(L17,L32) ->  | E17: 10 | F17: =AVERAGE(N17,N32) ->  | K17: Nov
A18: Dec | B18: 0 | C18: =AVERAGE(L18,L33) ->  | E18: 10 | F18: =AVERAGE(N18,N33) ->  | K18: Dec
K19: Annual | L19: =AVERAGE(L7:L18) ->  | M19: =MAX(M7:M18) -> 0 | N19: =AVERAGE(N7:N18) ->  | O19: =MAX(O7:O18) -> 0
J21: =+A6 -> 2022 | K21: mg/Nm3 | L21: Monthly 1/2 hourly mean | M21: Monthly 1/2 hourly maximum | N21: Monthly daily mean | O21: Monthly daily maximum
J22: A2 | K22: Jan
K23: Feb
K24: Mar
K25: Apr
K26: May
K27: Jun
K28: Jul
K29: Aug
K30: Sep
K31: Oct
K32: Nov
K33: Dec
K34: Annual | L34: =AVERAGE(L22:L33) ->  | M34: =MAX(M22:M33) -> 0 | N34: =AVERAGE(N22:N33) ->  | O34: =MAX(O22:O33) -> 0
J36: =+A6 -> 2022 | K36: mg/Nm3 | L36: Monthly 1/2 hourly mean | M36: Monthly 1/2 hourly maximum | N36: Monthly daily mean | O36: Monthly daily maximum
J37: A3 | K37: Jan
K38: Feb
K39: Mar
K40: Apr
K41: May
K42: Jun
K43: Jul
K44: Aug
K45: Sep
K46: Oct
K47: Nov
A48: Comments : | K48: Dec
A49: An indicated ELV value of zero in the table above means that no ammonia limit is set in the permit. | K49: Annual | L49: =AVERAGE(L37:L48) ->  | M49: =MAX(M37:M48) -> 0 | N49: =AVERAGE(N37:N48) ->  | O49: =MAX(O37:O48) -> 0
J51: =+A6 -> 2022 | K51: mg/Nm3 | L51: Monthly 1/2 hourly mean | M51: Monthly 1/2 hourly maximum | N51: Monthly daily mean | O51: Monthly daily maximum
J52: A4 | K52: Jan
K53: Feb
K54: Mar
K55: Apr
K56: May
K57: Jun
K58: Jul
K59: Aug
K60: Sep
K61: Oct
K62: Nov
K63: Dec
K64: Annual | L64: =AVERAGE(L52:L63) ->  | M64: =MAX(M52:M63) -> 0 | N64: =AVERAGE(N52:N63) ->  | O64: =MAX(O52:O63) -> 0
J66: =+A6 -> 2022 | K66: mg/Nm3 | L66: Monthly 1/2 hourly mean | M66: Monthly 1/2 hourly maximum | N66: Monthly daily mean | O66: Monthly daily maximum
J67: A5 | K67: Jan
K68: Feb
K69: Mar
K70: Apr
K71: May
K72: Jun
K73: Jul
K74: Aug
K75: Sep
K76: Oct
K77: Nov
K78: Dec
K79: Annual | L79: =AVERAGE(L67:L78) ->  | M79: =MAX(M67:M78) -> 0 | N79: =AVERAGE(N67:N78) ->  | O79: =MAX(O67:O78) -> 0
